{"text_format":"1","workbook":"xlsx","n_sheets":4,"sheets":["Reshelving Report","Report Sections","Mappings","Instructions"],"not_rendered":{"charts":0,"images":5,"macros":1,"external_links":0,"defined_names":36,"comments":0,"pivot_tables":0},"unopened":[],"bounds":{"document_bytes":16777216,"sheet_cells":100000,"rows_first":2000,"rows_last":500,"rows_between":2000,"halvings":0,"cell_chars":16384,"cell_head_chars":4096},"cells_cut":0,"cells_raw":0,"read":"whole","date_system":"1900"}

{"sheet":"Reshelving Report","index":0,"n_rows":583,"n_cols":18,"rows_kept":583,"cut":false,"hidden":false,"merged":[]}
["LEE LIBRARY RESHELVING REPORT 2011/12 BY CALL NUMBER AND COLLECTION"]
[null,null,null,null,null,null,null,null,null,null,null,null,null,null,null,null,"Circulating"]
["Description","Call Number","Budget",2011,null,null,null,2012,null,null,null,null,null,null,null,"Total","Inventory","Reshelving"]
[null,null,null,"Sept","Oct","Nov","Dec","Jan","Feb","Mar","Apr","May","Jun","Jul","Aug",null,"2011-09-01","Rate"]
["GENERAL STACKS"]
["Collections, Encyclopedias, Dictionaries, Indexes, Etc","AC-AL",34101,8,23,17,17,3,4,null,null,null,null,null,null,{"$f":"SUM(D6:O6)","v":72},5644,{"$f":"(P6/Q6)","v":1.2756909992912827E-2}]
["Museums, Collectors and Collecting","AM",34217,0,4,0,1,2,2,null,null,null,null,null,null,{"$f":"SUM(D7:O7)","v":9},688,{"$f":"(P7/Q7)","v":1.308139534883721E-2}]
["Newspapers, Periodicals, Societies, Yearbooks, Est","AN-AZ",34101,32,27,14,6,33,11,null,null,null,null,null,null,123,3940,3.1218274111675128E-2]
["Philosophy: Periodicals, Societies, Con","B1-B68",34105,3,1,2,1,0,0,null,null,null,null,null,null,7,1535,4.560260586319218E-3]
["Philosophy: History and Systems","B69-B9999",34105,39,79,122,74,67,77,null,null,null,null,null,null,458,20295,2.2567134762256715E-2]
["Logic","BC",34105,5,6,3,5,4,0,null,null,null,null,null,null,23,1250,1.84E-2]
["Speculative Philosophy","BD",34105,7,7,8,4,10,6,null,null,null,null,null,null,42,3674,1.1431682090364725E-2]
["Psychology","BF1-BF1000",34110,110,98,95,69,100,83,null,null,null,null,null,null,555,19033,2.9159880208059687E-2]
["Parapsychology, Occult Sciences","BF1001-BF9999",34110,2,27,24,5,27,6,null,null,null,null,null,null,91,3136,2.9017857142857144E-2]
["Aesthetics","BH",34105,1,2,9,8,5,24,null,null,null,null,null,null,49,1038,4.7206165703275529E-2]
["Ethics, Social Usages, Etiquette","BJ",34105,8,29,15,2,11,10,null,null,null,null,null,null,75,4757,1.5766239226403196E-2]
["Religions.  Mythology.  Rationalism","BL",34107,117,135,169,110,65,72,null,null,null,null,null,null,668,13559,4.9266170071539196E-2]
["Judaism","BM",34136,98,44,35,19,23,39,null,null,null,null,null,null,258,5892,4.3788187372708759E-2]
["Islam.  Bahaism.  Theosophy, etc.","BP",34136,52,36,101,12,23,44,null,null,null,null,null,null,268,3329,8.0504656052868731E-2]
["Buddhism","BQ",34135,9,23,5,2,2,3,null,null,null,null,null,null,44,1127,3.9041703637976932E-2]
["Christianity (General)","BR",34107,69,83,88,26,24,40,null,null,null,null,null,null,330,14863,2.2202785440355245E-2]
["Bible","BS",34107,245,103,164,63,103,128,null,null,null,null,null,null,806,19766,4.0777091976120609E-2]
["Doctrinal Theology","BT",34107,29,27,102,12,24,63,null,null,null,null,null,null,257,10132,2.5365179628898539E-2]
["Practical Theology","BV",34107,7,10,45,10,11,29,null,null,null,null,null,null,112,9714,1.1529750875025736E-2]
["Eastern Christian Churches","BX1-BX799",34107,4,9,0,2,5,5,null,null,null,null,null,null,25,953,2.6232948583420776E-2]
["Roman Catholic Churches","BX800-BX4799",34107,29,30,59,29,14,20,null,null,null,null,null,null,181,10226,1.7699980442010561E-2]
["Protestantism","BX4800-BX8599",34107,12,15,16,17,28,5,null,null,null,null,null,null,93,8187,1.1359472334188348E-2]
["Mormonism-General, Natural Theology","BX8600-BX8619",34103,43,24,25,14,19,29,null,null,null,null,null,null,154,1067,0.14432989690721648]
["Mormonism-Scriptures","BX8620-BX8629",34103,130,148,212,70,103,92,null,null,null,null,null,null,755,3188,0.23682559598494354]
["Mormonism-Doctrinal Theology","BX8630-BX8639",34103,168,116,279,142,79,91,null,null,null,null,null,null,875,3125,0.28000000000000003]
["Mormonism-Practical Theology","BX8640-BX8649",34103,99,89,162,114,75,61,null,null,null,null,null,null,600,5224,0.11485451761102604]
["Mormonism-Ecclesiastical Theology","BX8650-BX8659",34103,14,11,24,8,13,9,null,null,null,null,null,null,79,870,9.0804597701149431E-2]
["Mormonism-Religious Education","BX8660-BX8669",34103,6,1,5,7,10,0,null,null,null,null,null,null,29,277,0.10469314079422383]
["Mormonism-Biography & History","BX8670-BX8679",34103,177,104,226,83,99,177,null,null,null,null,null,null,866,5060,0.17114624505928855]
["Mormonism-Fine Arts & Fiction","BX8680-BX8689",34103,60,34,61,36,79,43,null,null,null,null,null,null,313,3985,7.854454203262233E-2]
["Mormonims-Church Schisms","BX8690-BX8699",34103,6,4,3,1,1,9,null,null,null,null,null,null,24,329,7.29483282674772E-2]
["Protestantism","BX8700-BX9999",34103,1,15,6,0,17,9,null,null,null,null,null,null,48,2586,1.8561484918793503E-2]
["Aux.Sciences of History: General, Hist. of Civilization","C-CB",34127,10,7,11,21,10,7,null,null,null,null,null,null,66,3865,1.7076326002587322E-2]
["Archaeology (General)","CC",34152,9,1,15,2,2,6,null,null,null,null,null,null,35,1513,2.3132848645076007E-2]
["Diplomatics.  Archives.  Seals, Chronology","CD-CE",34127,0,1,1,0,0,1,null,null,null,null,null,null,3,1702,1.7626321974148062E-3]
["Numismatics","CJ",34101,0,4,4,5,3,6,null,null,null,null,null,null,22,888,2.4774774774774775E-2]
["Epigraphy","CN",34126,0,0,0,0,0,1,null,null,null,null,null,null,1,325,3.0769230769230769E-3]
["Heraldry, Genealogy","CR-CS",34142,26,26,43,16,10,34,null,null,null,null,null,null,155,8214,1.8870221572924277E-2]
["Biography","CT",34128,1,6,6,7,3,3,null,null,null,null,null,null,26,4383,5.9320100387862196E-3]
["History (General)","D1-D899",34127,86,86,166,96,83,107,null,null,null,null,null,null,624,27493,2.2696686429272906E-2]
["History of Europe, General","D900-D2009",34131,3,0,0,0,1,1,null,null,null,null,null,null,5,1442,3.4674063800277394E-3]
["History: Great Britain","DA",34130,40,59,69,55,89,69,null,null,null,null,null,null,381,19571,1.9467579582034641E-2]
["History: Central Europe","DAW",34131,0,0,0,0,0,0,null,null,null,null,null,null,0,58,0]
["History: Austria, Austro-Hungarian Empire","DB",34131,16,9,11,1,2,0,null,null,null,null,null,null,39,6457,6.0399566362087653E-3]
["History: France","DC",34132,102,30,44,38,23,60,null,null,null,null,null,null,297,15615,1.9020172910662825E-2]
["History: Germany","DD",34131,61,36,60,16,32,12,null,null,null,null,null,null,217,17607,1.2324643607656047E-2]
["History: Mediterranean Region, Greco-Roman","DE",34126,1,4,1,4,1,1,null,null,null,null,null,null,12,507,2.3668639053254437E-2]
["History: Greece","DF",34131,9,17,31,8,9,16,null,null,null,null,null,null,90,3143,2.8635062042634427E-2]
["History: Italy","DG",34132,40,28,44,12,23,13,null,null,null,null,null,null,160,8033,1.9917838914477778E-2]
["History: Netherlands","DH-DJ",34131,1,1,6,1,4,0,null,null,null,null,null,null,13,2253,5.770084332001775E-3]
["History: Eastern Europe","DJK",34133,1,2,2,1,4,1,null,null,null,null,null,null,11,526,2.0912547528517109E-2]
["History: Russia, U.S.S.R.","DK",34133,22,21,44,15,31,21,null,null,null,null,null,null,154,10841,1.4205331611474956E-2]
["History: Northern Europe, Scandinavia","DL",34131,8,11,7,3,18,7,null,null,null,null,null,null,54,2002,2.6973026973026972E-2]
["History: Spain","DP1-DP500",34134,34,3,37,7,5,6,null,null,null,null,null,null,92,5671,1.6222888379474519E-2]
["History: Portugal","DP501-DP999",34134,4,2,7,4,1,0,null,null,null,null,null,null,18,1488,1.2096774193548387E-2]
["History: Switzerland","DQ",34131,10,18,2,3,1,1,null,null,null,null,null,null,35,2406,1.4546965918536992E-2]
["History: Eastern Europe.  Balkan Peninsula","DR",34133,10,8,6,5,10,13,null,null,null,null,null,null,52,2968,1.7520215633423181E-2]
["History: Asia","DS1-DS40",34135,18,20,31,3,7,11,null,null,null,null,null,null,90,1635,5.5045871559633031E-2]
["History: Near East","DS41-DS329",34136,99,102,71,43,65,91,null,null,null,null,null,null,471,16607,2.8361534292768109E-2]
["History: Southern Asia","DS330-DS499",34135,4,34,16,15,8,5,null,null,null,null,null,null,82,4333,1.892453265635818E-2]
["History: Southeastern Asia","DS500-DS700",34135,16,4,24,10,12,39,null,null,null,null,null,null,105,4216,2.4905123339658445E-2]
["History: China","DS701-DS800",34135,12,18,38,34,26,48,null,null,null,null,null,null,176,6002,2.9323558813728758E-2]
["History: Japan","DS801-DS903",34135,16,13,45,17,30,48,null,null,null,null,null,null,169,2555,6.6144814090019571E-2]
["History: Korea","DS904-DS999",34135,17,20,26,11,13,6,null,null,null,null,null,null,93,926,0.10043196544276457]
["History: Africa","DT1-DT42",34137,4,2,9,1,7,2,null,null,null,null,null,null,25,1615,1.5479876160990712E-2]
["History: Egypt and Sudan, North Africa","DT43-DT347",34136,36,16,39,5,35,11,null,null,null,null,null,null,{"$f":"SUM(D71:O71)","v":142},3863,{"$f":"(P71/Q71)","v":3.6758995599275174E-2}]
["History: Sub-Saharan Africa, South Africa","DT348-DT3415",34137,30,14,58,34,21,14,null,null,null,null,null,null,171,7018,2.4365916215445996E-2]
["History: Oceania (South Seas)","DU1-DU619",34135,4,1,5,1,0,0,null,null,null,null,null,null,11,1796,6.124721603563474E-3]
["Hawaii","DU620-DU629",34140,0,0,8,0,2,0,null,null,null,null,null,null,10,290,3.4482758620689655E-2]
["History: Oceania (South Seas)","DU630-DU999",34135,1,0,0,0,0,2,null,null,null,null,null,null,3,556,5.3956834532374104E-3]
["History: Gypsies","DX",34127,0,1,0,0,1,0,null,null,null,null,null,null,2,160,1.2500000000000001E-2]
["History of Americas: General, Indians","E1-E139",34140,61,105,68,43,59,89,null,null,null,null,null,null,425,13763,3.0879895371648623E-2]
["United States History","E140-E999",34140,253,233,280,207,171,224,null,null,null,null,null,null,1368,37376,3.6601027397260275E-2]
["State and Local History: Generally East of Utah","F1-F820",34140,271,241,220,122,230,279,null,null,null,null,null,null,1363,25892,5.2641742623204077E-2]
["Utah","F821-F835",34140,82,52,104,43,39,52,null,null,null,null,null,null,372,2060,0.18058252427184465]
["State and Local History: Generally West of Utah","F836-F999",34140,31,12,19,14,24,20,null,null,null,null,null,null,120,3976,3.0181086519114688E-2]
["History: British America, Canada","F1000-F1200",34143,4,7,14,7,3,9,null,null,null,null,null,null,44,3832,1.1482254697286013E-2]
["History: Mexico","F1201-F1400",34144,40,91,78,17,33,99,null,null,null,null,null,null,358,10713,3.3417343414543076E-2]
["History: Central America, Caribbean Area","F1401-F2200",34144,138,105,166,62,30,58,null,null,null,null,null,null,559,13644,4.0970389914980941E-2]
["History: South America","F2201-F9999",34144,76,112,182,44,18,54,null,null,null,null,null,null,486,30217,1.6083661515041203E-2]
["Geography (General)","G1-G999",34150,90,90,70,49,67,62,null,null,null,null,null,null,428,6830,6.2664714494875554E-2]
["Atlases","G1000-G3159",34151,63,67,53,21,61,31,null,null,null,null,null,null,296,4773,6.2015503875968991E-2]
["Maps","G3160-G9999",34151,43,53,52,61,52,84,null,null,null,null,null,null,345,353,0.97733711048158645]
["Mathematical Geography, Cartography","GA",34150,3,7,3,3,2,7,null,null,null,null,null,null,25,1172,2.1331058020477817E-2]
["Physical Geography, Geomorphology, Hydrology","GB",34150,24,3,17,4,1,13,null,null,null,null,null,null,62,2902,2.1364576154376293E-2]
["Oceanology","GC",34260,6,0,0,0,4,2,null,null,null,null,null,null,12,1085,1.1059907834101382E-2]
["Environmental Science","GE",34260,12,2,1,2,3,9,null,null,null,null,null,null,29,1342,2.1609538002980627E-2]
["Anthropogeography","GF",34150,1,3,2,0,2,0,null,null,null,null,null,null,8,1414,5.6577086280056579E-3]
["Anthrogeography, Ethnography, Prehistoric Archaeology","GN",34152,55,21,42,32,25,23,null,null,null,null,null,null,198,10656,1.8581081081081082E-2]
["Folklore","GR",34157,16,26,23,9,46,16,null,null,null,null,null,null,136,4134,3.2897919690372521E-2]
["Manners and Customs (General)","GT",34152,27,75,51,32,34,35,null,null,null,null,null,null,254,2843,8.9342244108336258E-2]
["Recreation","GV1-GV200",34160,3,4,10,7,4,17,null,null,null,null,null,null,45,2807,1.6031350195938723E-2]
["Physical Training","GV201-GV556",34160,6,1,9,4,4,7,null,null,null,null,null,null,31,2602,1.191391237509608E-2]
["Sports","GV557-GV1198",34160,37,55,68,29,25,43,null,null,null,null,null,null,257,8374,3.0690231669453068E-2]
["Games Amusements, Circuses, Carnivals, etc","GV1199-GV9999",34160,15,4,8,1,9,18,null,null,null,null,null,null,55,1193,4.6102263202011738E-2]
["The Social Sciences in General","H",34170,59,47,39,43,49,42,null,null,null,null,null,null,279,3934,7.0920183019827152E-2]
["Statistics","HA",34246,9,4,3,3,3,38,null,null,null,null,null,null,60,4290,1.3986013986013986E-2]
["Economic Theory","HB",34174,40,33,18,17,26,18,null,null,null,null,null,null,152,20305,7.4858409258803252E-3]
["Economic History & Conditions: General, Ancient World","HC1-HC42",34174,0,0,1,0,0,0,null,null,null,null,null,null,1,622,1.6077170418006431E-3]
["Economic History & Conditions: Modern Economic History","HC51-HC60",34174,0,1,5,1,0,1,null,null,null,null,null,null,8,2306,3.469210754553339E-3]
["Economic History & Conditions: Special Topics","HC79-HC92",34174,1,0,2,0,2,0,null,null,null,null,null,null,5,1799,2.7793218454697055E-3]
["Economic History & Conditions: U.S., Canada","HC94-HC120",34174,2,2,6,14,9,3,null,null,null,null,null,null,36,5315,6.7732831608654752E-3]
["Economic History & Conditions: Latin America","HC121-HC160",34174,0,3,0,1,3,0,null,null,null,null,null,null,7,2990,2.3411371237458192E-3]
["Economic History & Conditions: South America","HC161-HC239",34174,1,0,7,3,0,0,null,null,null,null,null,null,11,4624,2.3788927335640139E-3]
["Economic History & Conditions: Europe","HC240-HC246",34174,0,0,1,5,0,0,null,null,null,null,null,null,6,1616,3.7128712871287127E-3]
["Economic History & Conditions: Great Britain","HC251-HC260.5",34174,0,1,0,0,0,0,null,null,null,null,null,null,1,1183,8.4530853761622987E-4]
["Economic History & Conditions: Europe","HC261-HC330",34174,0,0,2,0,0,0,null,null,null,null,null,null,2,2072,9.6525096525096527E-4]
["Economic History & Conditions: Slavic","HC331-HC340.6",34174,0,0,0,1,0,0,null,null,null,null,null,null,1,999,1.001001001001001E-3]
["Economic History & Conditions: Europe","HC341-HC407",34174,0,0,0,0,0,0,null,null,null,null,null,null,0,927,0]
["Economic History & Conditions: Middle East","HC411-HC420",34174,0,0,0,0,0,0,null,null,null,null,null,null,0,512,0]
["Economic History & Conditions: General Asia, China","HC420.3-HC430.4",34174,0,0,0,0,0,0,null,null,null,null,null,null,0,582,0]
["Economic History & Conditions: Taiwan","HC430.5",34174,0,0,0,0,0,0,null,null,null,null,null,null,0,54,0]
["Economic History & Conditions: India","HC430.6-HC440.4",34174,0,0,1,0,0,0,null,null,null,null,null,null,1,363,2.7548209366391185E-3]
["Economic History & Conditions: Pakistan","HC440.5",34174,0,0,0,0,0,0,null,null,null,null,null,null,0,69,0]
["Economic History & Conditions: South East Asia","HC440.6-HC460",34174,0,0,0,1,0,1,null,null,null,null,null,null,2,390,5.1282051282051282E-3]
["Economic History & Conditions: Japan","HC461-HC465",34174,0,0,0,2,0,0,null,null,null,null,null,null,2,511,3.9138943248532287E-3]
["Economic History & Conditions: Korea","HC466-HC470",34174,0,0,1,0,0,0,null,null,null,null,null,null,1,180,5.5555555555555558E-3]
["Economic History & Conditions: Near East","HC471-HC499",34174,0,3,2,0,0,0,null,null,null,null,null,null,5,321,1.5576323987538941E-2]
["Economic History & Conditions: Africa","HC500-HC584",34174,0,0,0,0,0,0,null,null,null,null,null,null,0,396,0]
["Economic History & Conditions: Oceans: Islands, Lands","HC585-HC740",34174,0,1,0,0,0,0,null,null,null,null,null,null,1,358,2.7932960893854749E-3]
["Economic History & Conditions: Near East","HC800-HC835",34136,0,1,0,0,0,0,null,null,null,null,null,null,1,384,2.6041666666666665E-3]
["Economic History & Conditions: Africa","HC840-HC1085",34137,0,2,0,0,0,0,null,null,null,null,null,null,2,401,4.9875311720698253E-3]
["Economics: Production","HD1-HD100",34174,15,16,18,6,17,17,null,null,null,null,null,null,89,11894,7.4827644190348071E-3]
["Economics: Land","HD101-HD1400",34174,4,1,10,2,2,0,null,null,null,null,null,null,19,3692,5.1462621885157095E-3]
["Agricultural Economics","HD1401-HD2320",34174,2,12,3,2,5,0,null,null,null,null,null,null,24,5141,4.6683524606107758E-3]
["Economics: Industry","HD2321-HD4800",34174,2,3,6,2,6,11,null,null,null,null,null,null,30,5135,5.8422590068159686E-3]
["Labor","HD4801-HD8999",34174,10,3,18,8,12,3,null,null,null,null,null,null,54,20629,2.6176741480440158E-3]
["Special Industries and Trades","HD9000-HD9999",34180,8,10,28,8,6,23,null,null,null,null,null,null,83,10937,7.5889183505531681E-3]
["Transportation","HE1-HE7600",34174,1,8,4,3,4,5,null,null,null,null,null,null,25,3851,6.4918203064139183E-3]
["Telecommunications Industry","HE7601-HE9760",34176,7,1,4,1,0,0,null,null,null,null,null,null,{"$f":"SUM(D135:O135)","v":13},1119,{"$f":"(P135/Q135)","v":1.161751563896336E-2}]
["Transportation","HE9761-HE9999",34174,1,1,0,0,0,0,null,null,null,null,null,null,2,298,6.7114093959731542E-3]
["Commerce","HF1-HF1400",34180,6,2,4,0,4,5,null,null,null,null,null,null,21,2858,7.3477956613016097E-3]
["Commercial Policy","HF1401-HF5000",34180,1,6,2,0,0,1,null,null,null,null,null,null,10,4911,2.0362451639177356E-3]
["Business","HF5001-HF5400",34180,3,4,9,1,7,12,null,null,null,null,null,null,36,2038,1.7664376840039256E-2]
["Marketing","HF5401-HF5545",34180,5,12,22,3,12,14,null,null,null,null,null,null,68,4467,1.5222744571300649E-2]
["Office Management","HF5546-HF5600",34180,2,1,6,2,7,5,null,null,null,null,null,null,23,4308,5.3389043639740022E-3]
["Accounting, Business Math","HF5601-HF5716",34185,11,1,12,6,3,5,null,null,null,null,null,null,38,4216,9.0132827324478186E-3]
["Business Communications, Shipping","HF5717-HF5800",34180,2,2,4,0,0,0,null,null,null,null,null,null,8,634,1.2618296529968454E-2]
["Advertising","HF5801-HF9999",34176,6,6,20,11,1,7,null,null,null,null,null,null,51,1979,2.5770591207680646E-2]
["Finance","HG1-HG1500",34180,27,7,20,13,9,13,null,null,null,null,null,null,89,4664,1.9082332761578044E-2]
["Banking & Credit","HG1501-HG3769",34180,11,0,3,0,58,1,null,null,null,null,null,null,73,3819,1.9114951557999478E-2]
["Foreign Exchange","HG3810-HG4000",34180,1,2,5,0,3,3,null,null,null,null,null,null,14,1828,7.658643326039387E-3]
["Finance Management","HG4001-HG8010",34180,7,4,39,12,20,13,null,null,null,null,null,null,95,6330,1.5007898894154818E-2]
["Insurance","HG8011-HG9999",34180,0,0,2,0,1,7,null,null,null,null,null,null,10,1314,7.6103500761035003E-3]
["Public Finance","HJ",34185,5,3,9,4,0,2,null,null,null,null,null,null,23,4538,5.0683120317320408E-3]
["Sociology: General Works, Theory","HM",34190,40,33,43,25,27,23,null,null,null,null,null,null,191,11250,1.6977777777777779E-2]
["Social Problems","HN1-HN49",34190,2,2,1,2,1,5,null,null,null,null,null,null,13,1848,7.034632034632035E-3]
["Social History: United States","HN50-HN90",34190,3,6,7,3,5,1,null,null,null,null,null,null,25,2439,1.025010250102501E-2]
["Social History: Other Countries","HN101-HN991",34190,7,10,12,14,9,0,null,null,null,null,null,null,52,6822,7.6223981237173851E-3]
["Family, Marriage, Gender Role","HQ1-HQ1099",34191,108,90,143,36,60,48,null,null,null,null,null,null,485,15555,3.1179684988749599E-2]
["Women, Feminism","HQ1100-HQ9999",34192,30,35,82,44,38,42,null,null,null,null,null,null,271,7869,3.443893760325327E-2]
["Societies: Secret, Benevolent, Etc.","HS",34190,5,1,5,1,1,5,null,null,null,null,null,null,18,1282,1.4040561622464899E-2]
["Communities, Classes, Races","HT-HU",34190,21,22,27,29,18,6,null,null,null,null,null,null,123,9767,1.2593426845500154E-2]
["Social Work","HV1-HV4996",34193,36,39,32,31,19,15,null,null,null,null,null,null,172,10727,1.6034305956931109E-2]
["Substance Abuse","HV4997-HV6000",34193,0,11,6,5,1,1,null,null,null,null,null,null,24,2587,9.2771550057982217E-3]
["Criminology","HV6001-HV9999",34193,26,57,63,36,37,34,null,null,null,null,null,null,253,10787,2.3454157782515993E-2]
["Socialism, Communism, Anarchism, Utopian","HX",34200,5,32,18,25,1,7,null,null,null,null,null,null,88,8002,1.0997250687328168E-2]
["Political Science, Constitutional History, General","J-JK",34200,89,98,114,102,68,71,null,null,null,null,null,null,542,23605,2.2961237026053804E-2]
["Constitutional History & Administration: British","JL",34130,5,0,0,5,0,3,null,null,null,null,null,null,13,5521,2.35464589748234E-3]
["Constitutional History & Administration","JN",34132,1,5,7,16,6,3,null,null,null,null,null,null,38,9687,3.922783111386394E-3]
["Constitutional History: Asia, Near East, Africa, Australia, Ocean","JQ",34135,5,9,7,0,3,9,null,null,null,null,null,null,33,2401,1.3744273219491879E-2]
["Local Government","JS",34200,0,0,1,0,1,1,null,null,null,null,null,null,3,2535,1.1834319526627219E-3]
["Colonies and Colonization","JV1-JV6000",34200,0,1,2,1,0,0,null,null,null,null,null,null,4,648,6.1728395061728392E-3]
["Emigration & Immigration","JV6001-JV9999",34200,7,1,19,7,1,8,null,null,null,null,null,null,43,1592,2.701005025125628E-2]
["International Law","JX",34200,5,3,2,7,3,2,null,null,null,null,null,null,22,7320,3.0054644808743172E-3]
["International Relations","JZ",34200,17,18,31,68,4,28,null,null,null,null,null,null,166,2371,7.0012652889076335E-2]
["Law: General","K-KC",34200,49,65,41,19,32,42,null,null,null,null,null,null,248,647,0.38330757341576505]
["Law: United Kingdom and Ireland","KD",34200,0,0,0,0,0,0,null,null,null,null,null,null,0,118,0]
["Law: Canada","KE-KEZ",34200,0,0,0,0,0,0,null,null,null,null,null,null,0,35,0]
["Law: U.S. ","KF-KFZ",34200,16,5,42,17,8,10,null,null,null,null,null,null,98,4077,2.403728231542801E-2]
["Law: Other Countries","KG-KWX",34200,1,1,0,13,1,2,null,null,null,null,null,null,18,6225,2.891566265060241E-3]
["Education-General","L",34205,104,94,88,53,111,77,null,null,null,null,null,null,527,4741,0.11115798354777473]
["History of Education","LA-LB4",34205,4,11,12,13,4,10,null,null,null,null,null,null,54,7192,7.508342602892102E-3]
["Theory & Practice","LB5-LB1050",34205,56,42,34,36,26,22,null,null,null,null,null,null,216,10824,1.9955654101995565E-2]
["Educational Psychology","LB1051-LB1100",34205,2,10,0,10,1,2,null,null,null,null,null,null,25,2061,1.2130033964095099E-2]
["Child Study, Pre-school - 12","LB1101-LB1704",34205,14,14,27,9,14,11,null,null,null,null,null,null,89,8585,1.0366919044845661E-2]
["Education and Train of Teachers","LB1705-LB2299",34205,4,2,4,0,13,4,null,null,null,null,null,null,27,2166,1.2465373961218837E-2]
["Higher Education","LB2300-LB2798",34205,14,31,20,10,7,20,null,null,null,null,null,null,102,5331,1.9133370849746763E-2]
["Consulting, Admin","LB2799-LB3200",34205,11,5,92,11,28,3,null,null,null,null,null,null,150,6773,2.2146759190905065E-2]
["School Buildings","LB3201-LB9999",34205,0,2,0,4,2,0,null,null,null,null,null,null,8,946,8.4566596194503175E-3]
["Special Aspects of Education","LC1-LC1098",34205,6,8,36,19,11,13,null,null,null,null,null,null,93,6871,1.3535147722311163E-2]
["Multicultural Education","LC1099",34205,0,0,4,0,0,0,null,null,null,null,null,null,4,381,1.0498687664041995E-2]
["Education of Special Classes of Persons, General","LC1100-LC2637",34205,0,12,1,6,0,2,null,null,null,null,null,null,21,658,3.1914893617021274E-2]
["Hispanic American Education","LC2638-LC2698",34205,0,0,0,0,1,0,null,null,null,null,null,null,1,177,5.6497175141242938E-3]
["Afro-American Education","LC2699-LC3000",34205,0,3,0,0,0,0,null,null,null,null,null,null,3,426,7.0422535211267607E-3]
["Education of Special Classes of Persons, Other Groups","LC3001-LC3899",34205,2,2,6,8,0,0,null,null,null,null,null,null,18,779,2.3106546854942234E-2]
["Special Education","LC3900-LC5160",34205,2,2,8,11,8,15,null,null,null,null,null,null,46,3804,1.2092534174553101E-2]
["Education Extension, Adult Education, Continuing Education","LC5161-LC9999",34205,1,3,2,6,3,0,null,null,null,null,null,null,15,1454,1.0316368638239339E-2]
["Education: Individual Institutions: Uni","LD",34205,4,0,5,6,2,0,null,null,null,null,null,null,17,1367,1.2435991221653255E-2]
["Education: Institutions","LE-LT",34205,1,1,4,8,0,1,null,null,null,null,null,null,15,1885,7.9575596816976128E-3]
["Visual Arts (General)","N",34215,187,419,309,127,315,250,null,null,null,null,null,null,1607,20112,7.9902545743834527E-2]
["Architecture","NA",34216,66,55,71,48,115,86,null,null,null,null,null,null,441,11058,3.9880629408572982E-2]
["Sculpture","NB",34215,27,37,58,14,45,30,null,null,null,null,null,null,211,2768,7.6228323699421965E-2]
["Graphic Arts (General), Drawing, Design","NC",34216,180,267,196,73,247,128,null,null,null,null,null,null,{"$f":"SUM(D199:O199)","v":1091},4531,{"$f":"(P199/Q199)","v":0.24078569852129772}]
["Painting","ND",34215,227,342,297,106,193,130,null,null,null,null,null,null,1295,13109,9.8787092836982227E-2]
["Print Media: Prinkmaking, Engraving, Li","NE",34215,7,27,26,18,21,30,null,null,null,null,null,null,129,1926,6.6978193146417439E-2]
["Decorative Arts, Applied Arts, Crafts","NK",34215,67,56,102,49,77,95,null,null,null,null,null,null,446,10618,4.200414390657374E-2]
["Arts in General","NX",34215,129,38,51,11,83,24,null,null,null,null,null,null,336,2828,0.11881188118811881]
["Linguistics, General","P1-P85",34220,14,35,12,19,27,45,null,null,null,null,null,null,152,4647,3.2709274800946847E-2]
["Communication","P86-P97",34176,14,4,11,11,13,14,null,null,null,null,null,null,67,2866,2.3377529658060014E-2]
["Linguistics ","P98-P9999",34220,93,104,112,85,94,96,null,null,null,null,null,null,584,10227,5.7103744988755256E-2]
["Classical Philology","PA1-PA2999",34221,13,12,6,11,10,15,null,null,null,null,null,null,67,2273,2.9476462824461064E-2]
["Classical Literature","PA3000-PA3049",34221,4,4,1,0,1,1,null,null,null,null,null,null,11,362,3.0386740331491711E-2]
["Greek Literature","PA3050-PA5999",34221,27,69,31,16,17,19,null,null,null,null,null,null,179,5755,3.110338835794961E-2]
["Latin Literature","PA6000-PA9999",34221,10,22,16,8,15,27,null,null,null,null,null,null,98,5125,1.9121951219512195E-2]
["Modern Languages: General","PB1-PB1000",34220,0,4,4,0,0,0,null,null,null,null,null,null,8,824,9.7087378640776691E-3]
["Celtic Languages and Literatures","PB1001-PB9999",34220,3,1,4,0,4,2,null,null,null,null,null,null,14,628,2.2292993630573247E-2]
["Romanic Philology and Languages: General","PC1-PC1000",34222,0,0,2,0,0,3,null,null,null,null,null,null,5,723,6.9156293222683261E-3]
["Italian Language, Sardinian Language and Literature","PC1001-PC2000",34218,12,3,1,2,7,4,null,null,null,null,null,null,29,655,4.4274809160305344E-2]
["French Language","PC2001-PC3800",34222,33,13,15,11,32,21,null,null,null,null,null,null,125,3328,3.7560096153846152E-2]
["Catalan Language and Literature","PC3801-PC4000",34223,0,2,0,0,0,0,null,null,null,null,null,null,2,352,5.681818181818182E-3]
["Spanish Language","PC4001-PC5000",34223,19,64,44,51,15,8,null,null,null,null,null,null,201,2783,7.2224218469277762E-2]
["Portuguese Language","PC5001-PC9999",34223,1,22,12,5,4,1,null,null,null,null,null,null,45,797,5.6461731493099125E-2]
["Germanic Philology and Languages","PD ",34224,2,7,3,3,2,1,null,null,null,null,null,null,18,1347,1.3363028953229399E-2]
["English Philology and Language","PE",34227,340,170,137,79,170,230,null,null,null,null,null,null,1126,8450,0.1332544378698225]
["Dutch, Flemish, Friesian Language and Literature","PF1-PF3000",34224,0,0,0,0,0,0,null,null,null,null,null,null,0,396,0]
["German Language","PF3001-PF9999",34224,16,8,4,4,4,10,null,null,null,null,null,null,46,5246,8.7685855890202065E-3]
["Slavic Language & Literature","PG1-PG800",34233,0,0,0,0,2,24,null,null,null,null,null,null,26,502,5.1792828685258967E-2]
["Bulgarian Language and Literature","PG801-PG1160",34233,0,0,0,0,0,0,null,null,null,null,null,null,0,183,0]
["Macedonian Language and Literature","PG1161-PG1170",34233,0,0,0,0,0,0,null,null,null,null,null,null,0,11,0]
["Serbo-Croation, Slovenian Language and Literature","PG1171-PG2000",34233,0,0,0,0,1,5,null,null,null,null,null,null,6,490,1.2244897959183673E-2]
["Russian Language","PG2001-PG2899",34233,3,4,16,2,12,81,null,null,null,null,null,null,118,1600,7.3749999999999996E-2]
["Russian Literature ","PG2900-PG3800",34233,31,42,36,8,53,23,null,null,null,null,null,null,193,13018,1.4825626056229835E-2]
["Ukranian Language and Literature","PG3801-PG4000",34233,0,0,1,0,0,0,null,null,null,null,null,null,1,232,4.3103448275862068E-3]
["Czech, Slovak, Sorbian Language and Literature","PG4001-PG6000",34233,1,2,0,0,1,0,null,null,null,null,null,null,4,1007,3.9721946375372392E-3]
["Polish Language and Literature","PG6001-PG8000",34233,1,2,1,1,0,4,null,null,null,null,null,null,9,1082,8.3179297597042508E-3]
["Baltic Languages","PG8001-PG9500",34233,0,0,0,0,2,0,null,null,null,null,null,null,2,130,1.5384615384615385E-2]
["Albanian","PG9501-PG9999",34233,0,0,1,0,0,2,null,null,null,null,null,null,3,42,7.1428571428571425E-2]
["Finnish Language and Literature","PH1-PH1200",34224,0,12,5,0,1,1,null,null,null,null,null,null,19,826,2.3002421307506054E-2]
["Hungarian, Ugrian Languages and Literature","PH1201-PH5000",34224,0,2,0,0,0,0,null,null,null,null,null,null,2,508,3.937007874015748E-3]
["Basque Language and Literature","PH5001-PH9999",34223,0,1,2,1,1,0,null,null,null,null,null,null,5,78,6.4102564102564097E-2]
["Oriental Philology and Literature, Egyptology, etc","PJ ",34234,27,42,76,5,47,63,null,null,null,null,null,null,260,5399,4.8157066123356178E-2]
["Arabic, Ethiopian, Indo-Aryan, Caucasian Languages & Lit","PK",34234,1,7,5,1,3,7,null,null,null,null,null,null,24,1771,1.355166572557877E-2]
["Ural-Altaic, East Asiatic Languages and Literature","PL1-PL500",34235,0,2,1,1,4,0,null,null,null,null,null,null,8,669,1.195814648729447E-2]
["Japanese Language and Literature","PL501-PL900",34235,12,21,30,9,8,16,null,null,null,null,null,null,96,1974,4.8632218844984802E-2]
["Korean Language and Literature","PL901-PL1000",34235,11,8,15,11,11,11,null,null,null,null,null,null,67,397,0.16876574307304787]
["Chinese Language and Literature","PL1001-PL3300",34235,29,32,39,13,21,35,null,null,null,null,null,null,169,2630,6.4258555133079848E-2]
["Non-Chinese Languages of China","PL3301-PL7999",34235,2,4,4,3,6,0,null,null,null,null,null,null,19,1012,1.8774703557312252E-2]
["African Languages","PL8000-PL9999",34137,0,3,6,3,2,2,null,null,null,null,null,null,16,1008,1.5873015873015872E-2]
["American Languages, Creole, Artificial Languages","PM",34220,4,3,12,1,10,0,null,null,null,null,null,null,30,2947,1.0179843909060061E-2]
["Literature: periodicals, yearbooks, Soc","PN1-PN44",34227,7,14,16,5,8,11,null,null,null,null,null,null,61,2955,2.0642978003384094E-2]
["Literature: Theory, Philosophy, Esthetics, Criticism","PN45-PN100",34227,14,30,52,27,19,11,null,null,null,null,null,null,153,5227,2.927109240482112E-2]
["Authorship","PN101-PN440",34227,22,13,17,12,9,15,null,null,null,null,null,null,88,1710,5.146198830409357E-2]
["Literary History","PN441-PN1009",34227,31,36,72,15,28,31,null,null,null,null,null,null,213,4591,4.6395120888695275E-2]
["Poetry, the Performing Arts, Show Biz","PN1010-PN1599",34227,5,6,6,3,4,1,null,null,null,null,null,null,25,1760,1.4204545454545454E-2]
["The Drama: general, technique of composition, history","PN1600-PN1864",34231,2,1,3,4,3,13,null,null,null,null,null,null,26,1663,1.5634395670475046E-2]
["Historical and Religious Plays, Tragedy, etc.","PN1865-PN1989",34231,3,1,0,0,11,1,null,null,null,null,null,null,16,704,2.2727272727272728E-2]
["Booadcasting","PN1990-PN1992",34176,12,2,9,5,12,0,null,null,null,null,null,null,40,2264,1.7667844522968199E-2]
["Motion Pictures","PN1993-PN1999",34232,198,108,223,74,71,83,null,null,null,null,null,null,757,10373,7.2977923455123883E-2]
["The Theater: General","PN2000-PN2084",34231,26,30,17,9,8,39,null,null,null,null,null,null,129,1504,8.5771276595744683E-2]
["The Theater: The Stage, Accessories, History","PN2085-PN2219",34231,4,1,1,1,0,2,null,null,null,null,null,null,9,785,1.1464968152866241E-2]
["The Theater in the United States & the Americas","PN2220-PN2569",34231,18,49,29,12,26,28,null,null,null,null,null,null,162,3151,5.1412250079339895E-2]
["The Theater in Europe","PN2570-PN2859",34231,2,6,3,0,1,3,null,null,null,null,null,null,15,3000,5.0000000000000001E-3]
["The Theater in Asia, Africa, and Oceania","PN2860-PN3034",34231,0,0,2,0,1,1,null,null,null,null,null,null,4,317,1.2618296529968454E-2]
["Jewish Theater","PN3035-PN3150",34231,0,0,0,0,0,0,null,null,null,null,null,null,0,33,0]
["The Theater: Amateur and College Theater","PN3151-PN3194",34231,0,0,3,1,2,15,null,null,null,null,null,null,21,1408,1.4914772727272728E-2]
["The Theater: Minstrel Shows, Spectacles","PN3195-PN3310",34231,0,0,0,0,0,0,null,null,null,null,null,null,0,130,0]
["Prose, Oratory, Short Story, Diaries, Letters, Essays, etc","PN3311-PN4698",34227,5,19,21,6,19,14,null,null,null,null,null,null,{"$f":"SUM(D263:O263)","v":84},3277,{"$f":"(P263/Q263)","v":2.5633201098565761E-2}]
["Journalism and the Periodical Press","PN4699-PN6009",34176,9,6,18,2,9,12,null,null,null,null,null,null,56,5398,1.0374212671359764E-2]
["Literature: General Collections, Quotations, Poetry","PN6010-PN6120",34228,8,8,5,5,13,25,null,null,null,null,null,null,64,4259,1.5027001643578305E-2]
["Collections of Orations, Letters, Essays, Humor, Proverbs","PN6121-PN6699",34227,4,6,7,4,10,18,null,null,null,null,null,null,49,2389,2.0510673922143157E-2]
["Comic books, strips","PN6700-PN9999",34227,67,70,67,14,29,58,null,null,null,null,null,null,305,504,0.60515873015873012]
["French Literature","PQ1-PQ4000",34222,29,45,71,31,27,31,null,null,null,null,null,null,234,42907,5.4536555806744824E-3]
["Italian Literature","PQ4001-PQ6000",34218,29,24,20,25,12,25,null,null,null,null,null,null,135,12515,1.0787055533359968E-2]
["Spanish Literature","PQ6001-PQ7079",34223,11,18,51,48,21,16,null,null,null,null,null,null,165,17014,9.6978958504760782E-3]
["Spanish Literature in Spanish America (G","PQ7080-PQ7099",34223,2,15,9,6,1,0,null,null,null,null,null,null,33,2120,1.5566037735849057E-2]
["Spanish Literature of Mexico, Former U.S.","PQ7100-PQ7360",34223,8,11,25,30,2,12,null,null,null,null,null,null,88,12987,6.7760067760067764E-3]
["Spanish Literature of West Indies and Ce","PQ7361-PQ7550",34223,7,2,2,22,3,3,null,null,null,null,null,null,39,8294,4.7021943573667714E-3]
["Spanish Literature of South America, etc","PQ7551-PQ8999",34223,31,31,98,31,22,23,null,null,null,null,null,null,236,23439,1.006868893724135E-2]
["Portuguese Literature","PQ9000-PQ9499",34223,4,9,23,7,2,13,null,null,null,null,null,null,58,3714,1.5616585891222402E-2]
["Portuguese Literature of Brazil, to 1800","PQ9500-PQ9696",34223,9,29,1,1,1,1,null,null,null,null,null,null,42,1268,3.3123028391167195E-2]
["Portuguese Literature of Africa, Asia, Australia","PQ9697-PQ9999",34223,22,32,41,20,5,4,null,null,null,null,null,null,124,5226,2.3727516264829697E-2]
["English Literature: Literary History","PR1-PR1097",34227,31,53,81,36,12,20,null,null,null,null,null,null,233,10516,2.2156713579307721E-2]
["English Literature: Collections","PR1098-PR1489",34227,17,7,8,7,11,4,null,null,null,null,null,null,54,3536,1.5271493212669683E-2]
["Anglo-Saxon Literature","PR1490-PR1802",34227,9,3,3,4,0,2,null,null,null,null,null,null,21,370,5.675675675675676E-2]
["Anglo-Norman and Early Middle Englsih Literature","PR1803-PR2198",34227,10,3,7,3,5,17,null,null,null,null,null,null,45,1512,2.976190476190476E-2]
["English Renaissance Literature, Prose, Drama","PR2199-PR2749",34227,6,11,9,5,1,5,null,null,null,null,null,null,37,2597,1.424720831728918E-2]
["Shakespeare","PR2750-PR3134",34227,72,118,141,111,57,71,null,null,null,null,null,null,570,5816,9.8005502063273728E-2]
["English Renaissance Drama: Plays by Pla","PR3135-PR3290",34227,0,0,2,0,0,0,null,null,null,null,null,null,2,177,1.1299435028248588E-2]
["English Literature, 17th and 18th Century","PR3291-PR3990",34227,6,59,30,25,15,17,null,null,null,null,null,null,152,5645,2.6926483613817536E-2]
["English Literature, 19th Century","PR3991-PR5999",34227,100,126,188,54,39,72,null,null,null,null,null,null,579,17507,3.3072485291597647E-2]
["English Literature, 1900-1960","PR6000-PR6049",34227,54,60,137,65,17,33,null,null,null,null,null,null,366,14585,2.5094274940006857E-2]
["English Literature, 1961-","PR6050-PR8308",34227,20,24,27,26,9,39,null,null,null,null,null,null,145,6316,2.2957568081063966E-2]
["English Literature: Provincial, Colonial, Canada, Latin Amer","PR8309-PR9999",34227,8,21,22,18,9,6,null,null,null,null,null,null,84,6772,1.2404016538688719E-2]
["American Literature: General, Criticism","PS1-PS500",34227,3,15,21,23,27,20,null,null,null,null,null,null,109,6256,1.7423273657289004E-2]
["American Literature: Collections","PS501-PS699",34227,71,88,18,14,10,4,null,null,null,null,null,null,205,3367,6.0885060885060883E-2]
["American Literature: Colonial Period","PS700-PS990",34227,1,3,4,1,0,3,null,null,null,null,null,null,12,193,6.2176165803108807E-2]
["American Literature: 19th Century","PS991-PS3499",34227,51,36,97,60,33,29,null,null,null,null,null,null,306,11202,2.7316550615961437E-2]
["American Literature: 1900-1960","PS3500-PS3549",34227,88,112,145,87,65,52,null,null,null,null,null,null,549,25498,2.1531100478468901E-2]
["American Literature: 1961-","PS3550-PS8000",34227,233,315,206,84,86,57,null,null,null,null,null,null,981,18745,5.2333955721525743E-2]
["Canadian Literature: English and French","PS8001-PS9999",34227,0,0,0,1,0,0,null,null,null,null,null,null,1,4,0.25]
["German Literature","PT1-PT5000",34224,57,49,35,49,71,26,null,null,null,null,null,null,287,42232,6.7957946580791814E-3]
["Dutch Literature","PT5001-PT6471",34224,1,8,0,1,1,3,null,null,null,null,null,null,14,2375,5.8947368421052634E-3]
["Afrikaans Literature","PT6500-PT6592",34224,0,0,0,0,0,0,null,null,null,null,null,null,0,51,0]
["Scandinavian Literature: Norwegian, Danish, Swedish","PT7000-PT9999",34224,3,6,0,21,2,15,null,null,null,null,null,null,47,7034,6.6818311060562983E-3]
["Science Fiction and Fantasy","PZ",34230,220,249,180,105,126,135,null,null,null,null,null,null,1015,12466,8.1421466388576932E-2]
["Science (General) (B)","Q1-Q294",34240,24,20,29,7,30,37,null,null,null,null,null,null,147,9454,1.5548973979268035E-2]
["Cybernetics","Q295-Q350",34247,2,1,12,0,0,1,null,null,null,null,null,null,16,935,1.7112299465240642E-2]
["Science (General) (B)","Q351-Q9999",34240,0,1,0,0,0,2,null,null,null,null,null,null,3,149,2.0134228187919462E-2]
["Mathematics (General)","QA1-QA73",34245,50,39,28,20,35,25,null,null,null,null,null,null,197,9469,2.0804731228218395E-2]
["Computer Science","QA74-QA76",34247,112,75,55,35,102,44,null,null,null,null,null,null,423,18912,2.2366751269035534E-2]
["Mathematics, Arithmetic, Algebra","QA77-QA266",34245,30,40,22,31,39,27,null,null,null,null,null,null,189,4948,3.8197251414713015E-2]
["Computer Science (Machine Theory)","QA267-QA268",34247,2,6,1,2,1,0,null,null,null,null,null,null,12,366,3.2786885245901641E-2]
["Probability and Statistics","QA269-QA280",34246,74,60,42,56,72,34,null,null,null,null,null,null,338,4073,8.2985514362877488E-2]
["Numerical Analysis, Calculus, Geometry, Trigonometry","QA281-QA999",34245,53,131,96,48,67,32,null,null,null,null,null,null,427,11388,3.7495609413417633E-2]
["Astronomy","QB",34250,16,32,29,9,27,23,null,null,null,null,null,null,136,6060,2.2442244224422443E-2]
["Physics","QC1-QC800",34250,33,51,38,37,71,45,null,null,null,null,null,null,275,15560,1.7673521850899744E-2]
["Geophysics, Cosmic Physics, Meteorology, Climatology","QC801-QC999",34260,10,8,8,3,7,8,null,null,null,null,null,null,44,3237,1.3592832869941304E-2]
["Chemistry (General)","QD1-QD70",34255,12,23,9,7,21,9,null,null,null,null,null,null,81,2638,3.070507960576194E-2]
["Analytical Chemistry","QD71-QD145",34255,10,3,7,4,2,0,null,null,null,null,null,null,26,1549,1.6785022595222725E-2]
["Inorganic Chemistry","QD146-QD240",34255,1,1,3,0,0,0,null,null,null,null,null,null,5,842,5.9382422802850355E-3]
["Organic Chemistry","QD241-QD449",34255,4,11,13,1,25,7,null,null,null,null,null,null,61,3944,1.5466531440162272E-2]
["Physical and Theoretical Chemistry","QD450-QD900",34255,7,22,25,4,41,10,null,null,null,null,null,null,109,3687,2.9563330621101166E-2]
["Crystallography","QD901-QD999",34255,1,0,3,0,1,0,null,null,null,null,null,null,5,644,7.763975155279503E-3]
["Geology (General)","QE1-QE64",34260,12,5,5,0,4,6,null,null,null,null,null,null,32,3101,1.0319251854240567E-2]
["Regional Geology","QE65-QE350",34260,12,7,11,0,5,11,null,null,null,null,null,null,46,7766,5.9232552150399178E-3]
["Mineralogy, Petrology","QE351-QE639",34260,17,12,12,4,13,7,null,null,null,null,null,null,65,3783,1.7182130584192441E-2]
["Stratigraphy, Paleontology","QE640-QE900",34260,2,5,10,0,15,9,null,null,null,null,null,null,41,3045,1.3464696223316914E-2]
["Paleobotany","QE901-QE999",34265,0,0,0,0,2,0,null,null,null,null,null,null,2,422,4.7393364928909956E-3]
["Natural History, Microscopy, Biology (General)","QH1-QH505",34265,38,31,32,13,44,35,null,null,null,null,null,null,193,12664,1.5240050536955149E-2]
["Molecular Biology","QH506",34265,2,10,2,3,5,0,null,null,null,null,null,null,22,683,3.2210834553440704E-2]
["Biology (General)","QH507-QH999",34265,6,19,33,10,6,12,null,null,null,null,null,null,{"$f":"SUM(D327:O327)","v":86},4605,{"$f":"(P327/Q327)","v":1.8675352877307275E-2}]
["Botany","QK",34265,25,21,30,5,17,28,null,null,null,null,null,null,126,10963,1.1493204414849949E-2]
["Zoology","QL",34265,102,45,32,43,49,72,null,null,null,null,null,null,343,20903,1.640912787638138E-2]
["Anatomy and Physiology","QM-QP",34271,89,90,91,25,73,68,null,null,null,null,null,null,436,14305,3.0478853547710592E-2]
["Microbiology (B)","QR",34275,13,8,13,12,10,9,null,null,null,null,null,null,65,4810,1.3513513513513514E-2]
["Medicine (General)","R",34280,68,60,50,30,33,62,null,null,null,null,null,null,303,6323,4.792029100110707E-2]
["Medicine and the State (B)","RA1-RA420",34281,7,1,1,2,2,1,null,null,null,null,null,null,14,3336,4.1966426858513189E-3]
["Public Health (B)","RA421-RA790",34281,39,26,30,7,41,23,null,null,null,null,null,null,166,6885,2.4110384894698619E-2]
["Medical Geography, Hospitals, Forensic Medicine Toxicology","RA791-RA1299",34281,4,3,2,4,2,1,null,null,null,null,null,null,16,2918,5.4832076764907475E-3]
["Pathology (B)","RB",34275,18,3,7,5,9,10,null,null,null,null,null,null,52,1630,3.1901840490797549E-2]
["Internal Medicine, Medical Practice, Parasitic Diseases","RC1-RC253",34280,16,18,15,8,6,2,null,null,null,null,null,null,65,2486,2.6146419951729685E-2]
["Neoplasma, Neoplastic Diseases (Cancer)","RC254-RC305",34280,2,0,7,2,3,3,null,null,null,null,null,null,17,1914,8.881922675026124E-3]
["Tuberculosis (B)","RC306-RC320",34280,0,0,0,0,0,0,null,null,null,null,null,null,0,102,0]
["Neuroscience","RC321-RC349",34271,2,0,7,1,0,0,null,null,null,null,null,null,10,975,1.0256410256410256E-2]
["Gene therapy","RC350",34290,0,0,0,0,1,1,null,null,null,null,null,null,2,125,1.6E-2]
["Neuroscience","RC351-RC422",34271,16,37,12,3,4,1,null,null,null,null,null,null,73,1198,6.0934891485809682E-2]
["Speech and language disorders","RC423-RC428",34205,1,2,4,0,0,0,null,null,null,null,null,null,7,877,7.98175598631699E-3]
["Neuroscience","RC429-RC434",34271,0,0,0,0,0,0,null,null,null,null,null,null,0,41,0]
["Psychiatry, Psychopathology, Neurology","RC435-RC569.5",34110,117,68,117,60,126,44,null,null,null,null,null,null,532,11157,4.768306892533835E-2]
["Mental retardation. Developmental disabilities","RC569.7-RC571",34205,1,2,0,2,0,0,null,null,null,null,null,null,5,257,1.9455252918287938E-2]
["Neuroscience","RC572-RC580",34271,0,0,0,0,0,0,null,null,null,null,null,null,0,41,0]
["Internal Medicine, Medical Practice, Parasitic Diseases","RC581-RC1199",34280,25,22,18,1,33,26,null,null,null,null,null,null,125,4897,2.5525832142127832E-2]
["Sports Medicine","RC1200-RC1245",34273,0,2,19,0,3,1,null,null,null,null,null,null,25,486,5.1440329218106998E-2]
["Medicine: Other areas","RD-RS",34280,96,98,111,43,77,42,null,null,null,null,null,null,467,14490,3.2229123533471363E-2]
["Nursing (B)","RT",34285,10,6,8,3,7,1,null,null,null,null,null,null,35,5045,6.9375619425173438E-3]
["Medicine: Other areas, incl Homeopathy","RV-RZ",34280,2,8,1,0,0,0,null,null,null,null,null,null,11,303,3.6303630363036306E-2]
["Agriculture (General), Conservation of Natural Resources","S",34290,19,7,5,3,16,25,null,null,null,null,null,null,75,9378,7.9974408189379398E-3]
["Plant Culture","SB",34290,19,43,57,16,52,46,null,null,null,null,null,null,233,9727,2.3953942633905625E-2]
["Forestry","SD",34290,2,7,1,0,4,2,null,null,null,null,null,null,16,2665,6.0037523452157598E-3]
["Animal Culture, Veterinary Medicine","SF",34265,23,7,27,25,24,18,null,null,null,null,null,null,124,6300,1.9682539682539683E-2]
["Fish Culture and Fisheries","SH",34265,1,1,1,0,4,1,null,null,null,null,null,null,8,3027,2.642880740006607E-3]
["Hunting Sports","SK",34290,2,11,3,15,0,1,null,null,null,null,null,null,32,1485,2.154882154882155E-2]
["Technology","T1-T384",34300,26,18,17,12,31,33,null,null,null,null,null,null,137,5945,2.3044575273338939E-2]
["Computer Graphics","T385",34247,2,2,10,1,1,1,null,null,null,null,null,null,17,602,2.823920265780731E-2]
["Technology","T386-T999",34300,15,14,10,5,3,5,null,null,null,null,null,null,52,168,0.30952380952380953]
["Engineering: Civil Engineering, Highway, Bridge, etc","TA-TC",34305,54,38,58,19,41,53,null,null,null,null,null,null,263,18431,1.4269437360967934E-2]
["Environmental Technology","TD",34306,2,5,16,5,15,6,null,null,null,null,null,null,49,6313,7.7617614446380484E-3]
["Engineering: Civil Engineering, Highway, Bridge, etc","TE-TG",34305,5,3,7,3,9,3,null,null,null,null,null,null,30,1929,1.5552099533437015E-2]
["Building Construction","TH",34300,5,19,9,20,3,8,null,null,null,null,null,null,64,3993,1.6028049085900324E-2]
["Mechanical Engineering and Machinery","TJ",34310,21,37,23,25,55,10,null,null,null,null,null,null,171,6599,2.5913017123806639E-2]
["Electrical Engineering, Electronics, Nuc","TK",34312,23,31,52,17,67,28,null,null,null,null,null,null,218,15455,1.4105467486250405E-2]
["Motor Vehicles, Aeronautics, Astronautic","TL",34310,36,15,26,13,13,76,null,null,null,null,null,null,179,8211,2.1800024357569114E-2]
["Mining Engineering and Metallurgy","TN",34260,11,10,13,6,1,7,null,null,null,null,null,null,48,4950,9.696969696969697E-3]
["Chemical Technology, General","TP1-TP154",34313,0,3,3,0,5,1,null,null,null,null,null,null,12,584,2.0547945205479451E-2]
["Chemical Engineering","TP155-TP199",34313,1,3,1,0,3,1,null,null,null,null,null,null,9,1436,6.267409470752089E-3]
["Chemical Technology, Specific Areas","TP200-TP367",34313,6,10,17,3,8,1,null,null,null,null,null,null,45,2114,2.128666035950804E-2]
["Food Processing and Manufacture","TP368-TP465",34318,1,2,3,1,2,0,null,null,null,null,null,null,9,920,9.7826086956521747E-3]
["Chemical Technology, Specific Areas","TP466-TP9999",34313,22,3,2,2,4,7,null,null,null,null,null,null,40,2500,1.6E-2]
["Photography","TR",34215,118,145,122,54,107,191,null,null,null,null,null,null,737,5858,0.12581085694776376]
["Manufacturing","TS1-TS1299",34300,56,23,24,15,7,8,null,null,null,null,null,null,133,9810,1.3557594291539245E-2]
["Clothing & Textiles","TS1300-TS1865",34315,1,0,0,0,0,1,null,null,null,null,null,null,2,690,2.8985507246376812E-3]
["Manufacturing","TS1866-TS9999",34300,1,1,0,0,0,0,null,null,null,null,null,null,2,352,5.681818181818182E-3]
["Handicrafts, Arts and Crafts","TT",34300,37,41,40,17,49,25,null,null,null,null,null,null,209,2965,7.0489038785834734E-2]
["Home Economics, Nutrition, Cookery","TX",34318,113,119,108,58,153,138,null,null,null,null,null,null,689,6578,0.10474308300395258]
["Military Science","U-UZ",34199,53,53,71,33,18,23,null,null,null,null,null,null,251,10022,2.5044901217321891E-2]
["Naval Science","V-VM",34199,82,39,31,33,28,63,null,null,null,null,null,null,276,1980,0.1393939393939394]
["History of Books and Bookmaking","Z1-Z39",34324,4,1,18,0,0,2,null,null,null,null,null,null,25,252,9.9206349206349201E-2]
["Writing, Paleography","Z40-Z115",34324,1,4,9,1,0,26,null,null,null,null,null,null,41,1150,3.5652173913043476E-2]
["Printing","Z116-Z550",34324,30,26,184,56,40,44,null,null,null,null,null,null,380,4245,8.95170789163722E-2]
["Library Science, Copyright, Intellectual Property","Z551-Z1000",34325,10,4,15,21,7,3,null,null,null,null,null,null,60,9285,6.462035541195477E-3]
["Bibliography, General","Z1001-Z1200",34101,0,5,6,4,7,0,null,null,null,null,null,null,22,2282,9.6406660823838732E-3]
["National Bibliography: America, United States","Z1201-Z1364",34140,0,1,4,1,4,1,null,null,null,null,null,null,11,353,3.1161473087818695E-2]
["National Bibliography: Canada","Z1365-Z1410",34143,0,0,0,0,0,0,null,null,null,null,null,null,0,27,0]
["National Bibliography: Mexico, Central","Z1411-Z1999",34144,0,0,0,0,0,0,null,null,null,null,null,null,0,363,0]
["National Bibliography: Europe","Z2000-Z3000",34131,0,0,0,1,0,0,null,null,null,null,null,null,1,1886,{"$f":"(P391/Q391)","v":5.3022269353128319E-4}]
["National Bibliography: Asia, Africa, Australia","Z3001-Z5050",34135,0,0,0,0,0,0,null,null,null,null,null,null,0,134,0]
["Subject and Personal Bibliography","Z5051-Z9999",34325,0,1,2,0,1,3,null,null,null,null,null,null,7,1065,6.5727699530516428E-3]
["Information Resources","ZA",34247,0,0,1,0,1,0,null,null,null,null,null,null,2,132,1.5151515151515152E-2]
["Totals",null,null,{"$f":"SUM(D6:D394)","v":9898},10192,12151,6232,8046,8224,0,0,0,0,0,0,{"$f":"SUM(D395:O395)","v":54743},{"$f":"SUM(Q6:Q394)","v":1948646},{"$f":"(P395/Q395)","v":2.8092839848797575E-2}]
["Cumulative Totals"]
[]
["CURRICULUM LIBRARY (EDUCATION)","Curriculum",34205,450,284,220,186,275,175,null,null,null,null,null,null,{"$f":"SUM(D398:O398)","v":1590},19414,{"$f":"(P398/Q398)","v":8.1899660039147004E-2}]
[]
["MIDDLE EAST COLLECTION","MEC,MEC-ARABIC,MEC-HEBREW,MEC-PERSN,MEC-TURK",34234,2,20,3,4,12,15,null,null,null,null,null,null,{"$f":"SUM(D400:O400)","v":56},4993,{"$f":"(P400/Q400)","v":1.1215701982775887E-2}]
["ICELANDIC","ICELANDIC",null,3,1,0,0,0,0,null,null,null,null,null,null,{"$f":"SUM(D401:O401)","v":4},559,{"$f":"(P401/Q401)","v":7.1556350626118068E-3}]
["WELSH","WELSH",null,7,2,2,0,2,0,null,null,null,null,null,null,{"$f":"SUM(D402:O402)","v":13},1683,{"$f":"(P402/Q402)","v":7.7243018419489006E-3}]
[]
[]
["MUSIC LIBRARY","Music"]
["Music: Uncataloged Scores?","A-L",34210,13,5,7,4,8,8,null,null,null,null,null,null,{"$f":"SUM(D406:O406)","v":45},38615,{"$f":"(P406/Q406)","v":1.1653502524925548E-3}]
["Music: Collected Sets of Scores","M1-M3",34210,10,107,46,52,11,22,null,null,null,null,null,null,248,9263,2.6773183633811939E-2]
["Keyboard","M4-M39",34210,69,198,119,54,64,83,null,null,null,null,null,null,587,13826,4.2456241863156371E-2]
["Instrumental Music","M40-M999",34210,104,185,140,67,67,117,null,null,null,null,null,null,680,34266,1.9844744061168505E-2]
["Orchestral","M1000-M1499",34210,64,108,58,42,43,74,null,null,null,null,null,null,389,11524,3.3755640402637975E-2]
["Opera","M1500-M1507",34210,29,79,22,26,35,20,null,null,null,null,null,null,211,3349,6.300388175574799E-2]
["Musicals","M1508-M1519",34210,56,70,76,20,60,75,null,null,null,null,null,null,357,1310,0.27251908396946567]
["Ballet, Dance, Film","M1520-M1527",34210,18,5,3,4,7,5,null,null,null,null,null,null,42,1092,3.8461538461538464E-2]
["Choral, Orchestra","M1528-M1546",34210,5,8,2,3,4,3,null,null,null,null,null,null,25,974,2.5667351129363448E-2]
["Vocal Secular","M1547-M2000",34210,46,106,81,24,90,69,null,null,null,null,null,null,416,9122,4.5604034203025653E-2]
["Vocal Sacred","M2001-M9999",34210,31,75,71,25,47,17,null,null,null,null,null,null,266,5102,5.2136417091336727E-2]
["Dance","MD",34161,53,37,104,95,42,231,null,null,null,null,null,null,562,7089,7.9277754267174497E-2]
["Journals, non-circulating","ML1-ML5",34211,8,2,5,3,5,2,null,null,null,null,null,null,25,4059,6.1591525006159152E-3]
["Reference, non-circulating","ML6-ML159",34211,170,540,382,197,142,217,null,null,null,null,null,null,1648,5789,0.28467783727759544]
["Music History","ML160-ML384",34211,49,44,25,18,31,24,null,null,null,null,null,null,191,3781,5.0515736577624967E-2]
["Music Biography","ML385-ML429",34211,99,96,120,104,98,127,null,null,null,null,null,null,644,14371,4.4812469556746226E-2]
["Composition and Performance","ML430-ML459",34211,10,4,5,7,0,2,null,null,null,null,null,null,28,367,7.6294277929155316E-2]
["Musical Instruments","ML460-ML1099",34211,9,24,51,4,5,7,null,null,null,null,null,null,100,2389,4.1858518208455424E-2]
["Genres","ML1100-ML3469",34211,20,36,26,14,18,27,null,null,null,null,null,null,141,2910,4.8453608247422682E-2]
["Pop and Folk","ML3470-ML3799",34211,15,23,39,5,14,37,null,null,null,null,null,null,133,3373,3.9430773791876671E-2]
["Science of Music","ML3800-ML9999",34211,6,16,18,50,5,10,null,null,null,null,null,null,105,1901,5.5234087322461864E-2]
["Music Theory and Criticism","MT1-MT169",34211,51,61,62,37,48,20,null,null,null,null,null,null,279,5139,5.4290718038528897E-2]
["Pedagogy","MT170-MT999",34211,57,91,57,2,19,69,null,null,null,null,null,null,295,9054,3.2582284073337749E-2]
["Music: Uncataloged Scores?","N-ZA",34211,6,9,3,0,2,3,null,null,null,null,null,null,23,32478,7.0817168544861134E-4]
["Totals"," ",null,{"$f":"SUM(D406:D429)","v":998},{"$f":"SUM(E406:E429)","v":1929},1522,{"$f":"SUM(G406:G429)","v":857},865,1269,0,0,0,0,0,0,7440,{"$f":"SUM(Q406:Q429)","v":221143},3.3643389119257676E-2]
["Cumulative Totals"]
[]
["ASIAN LIBRARY","Asian"]
["General","A-DR",34135,2,3,7,1,null,3,null,null,null,null,null,null,{"$f":"SUM(D434:O434)","v":16},15847,{"$f":"(P434/Q434)","v":1.0096548242569572E-3}]
["History: Asia","DS1-DS40",34135,null,null,1,null,null,null,null,null,null,null,null,null,1,125,8.0000000000000002E-3]
["History: Southwestern Asia, Ancient Orient, Near East","DS41-DS329",34135,null,null,null,null,null,null,null,null,null,null,null,null,0,43,0]
["History: Southern Asia","DS330-DS499",34135,null,null,null,null,null,null,null,null,null,null,null,null,0,23,0]
["History: Southeastern Asia","DS500-DS700",34135,null,null,null,null,null,null,null,null,null,null,null,null,0,204,0]
["History: China","DS701-DS800",34135,2,null,1,null,1,1,null,null,null,null,null,null,5,15648,3.1952965235173826E-4]
["History: Japan","DS801-DS903",34135,null,null,null,null,null,null,null,null,null,null,null,null,0,3335,0]
["History: Korea","DS904-DS999",34135,4,4,null,1,3,null,null,null,null,null,null,null,12,2739,4.3811610076670317E-3]
["History: Africa","DT",34135,null,null,null,null,null,null,null,null,null,null,null,null,0,15,0]
["Miscellaneous","DX-HB",34135,1,1,2,4,null,null,null,null,null,null,null,null,8,2140,3.7383177570093459E-3]
["Economic History and Conditions","HC",34135,null,null,null,null,null,null,null,null,null,null,null,null,0,1121,0]
["Miscellaneous","HD-JN",34135,1,null,1,null,1,null,null,null,null,null,null,null,3,3358,8.9338892197736745E-4]
["Constitutional History: Asia","JQ1-JQ1757",34135,null,null,null,null,null,null,null,null,null,null,null,null,0,836,0]
["Miscellaneous","JS-KKZ",34135,null,null,null,null,null,null,null,null,null,null,null,null,0,311,0]
["Law: Asia, Eurasia, Africa, Pacific Islands, Antarctica","KL-KZ",34135,null,null,null,null,null,null,null,null,null,null,null,null,0,550,0]
["Education","L-LF",34135,null,null,null,null,null,null,null,null,null,null,null,null,0,796,0]
["Education: Institutions; Asia, Africa, Oceania","LG",34135,null,null,null,null,null,null,null,null,null,null,null,null,0,107,0]
["Miscellaneous","LH-PK",34135,1,1,2,null,null,1,null,null,null,null,null,null,5,2998,1.667778519012675E-3]
["Ural, East Asiatic Languages & Literature (General)","PL1-PL500",34235,null,null,null,null,null,null,null,null,null,null,null,null,0,127,0]
["Japanese Language and Literature","PL501-PL900",34235,5,2,5,null,null,1,null,null,null,null,null,null,13,7022,1.8513244090002849E-3]
["Korean Language and Literature","PL901-PL1000",34235,4,2,8,2,1,2,null,null,null,null,null,null,19,3178,5.9786028949024546E-3]
["Chinese Language and Literature","PL1001-PL3300",34235,16,11,20,7,7,15,null,null,null,null,null,null,76,22328,3.4037979218917952E-3]
["Other Asian, Oceanic, African Languages and Literature","PL3301-PL9999",34235,null,null,null,null,null,null,null,null,null,null,null,null,0,102,0]
["Miscellaneous","PM-ZA",34235,2,null,2,2,null,null,null,null,null,null,null,null,6,5122,1.1714174150722373E-3]
["Total",null,null,{"$f":"SUM(D434:D457)","v":38},24,49,17,13,23,{"$f":"SUM(J434:J457)","v":0},0,0,0,0,{"$f":"SUM(O434:O457)","v":0},{"$f":"SUM(D458:O458)","v":164},{"$f":"SUM(Q434:Q457)","v":88075},1.8620493897246666E-3]
["Cumulative Totals"]
[]
["JUVENILE","JUV"]
["Juv   ","Juv",34236,3013,4014,2946,1274,2153,1323,null,null,null,null,null,null,{"$f":"SUM(D462:O462)","v":14723},84574,{"$f":"(P462/Q462)","v":0.17408423392531983}]
["Bigbook","Juv-Bigbk",34236,37,18,20,13,7,24,null,null,null,null,null,null,119,931,0.12781954887218044]
["Juv-Cirs","Juv-Cirs",34236,0,1,0,0,0,0,null,null,null,null,null,null,1,4,0.25]
["Juv-Lock, Juv-Lock-F, Juv-Lock-Q","Juv-Lock",34236,1,1,0,2,1,0,null,null,null,null,null,null,5,1757,2.8457598178713715E-3]
["Juv-Q & F","Juv-Q & F",34236,15,17,13,14,14,12,null,null,null,null,null,null,85,735,0.11564625850340136]
["Juv-Ref","Juv-Ref",34236,72,84,23,9,32,8,null,null,null,null,null,null,228,1661,0.13726670680313063]
["Juv-Rev","Juv-Rev",34236,0,0,0,0,0,0,null,null,null,null,null,null,0,57,0]
["Total",null,null,{"$f":"SUM(D462:D468)","v":3138},4135,3002,1312,2207,1367,0,0,0,0,0,0,{"$f":"SUM(D469:O469)","v":15161},{"$f":"SUM(Q462:Q468)","v":89719},0.1689831585282939]
["Cumulative Totals"]
[]
["WORLD CLASSICS"]
["Collections","AC",34365,1,10,1,2,3,null,null,null,null,null,null,null,{"$f":"SUM(D473:O473)","v":17},113,{"$f":"(P473/Q473)","v":0.15044247787610621}]
["Philosophy","B",34365,null,null,null,null,null,null,null,null,null,null,null,null,0,37,0]
["Psychology","BF",34365,null,null,null,null,null,null,null,null,null,null,null,null,0,6,0]
["Ethics","BJ",34365,null,null,null,null,null,null,null,null,null,null,null,null,0,4,0]
["Religions","BL",34365,1,null,null,null,null,null,null,null,null,null,null,null,1,11,9.0909090909090912E-2]
["Judaism","BM",34365,null,null,null,null,null,null,null,null,null,null,null,null,0,4,0]
["Islam","BP",34365,null,null,null,null,null,null,null,null,null,null,null,null,0,1,0]
["Christianity (General)","BR",34365,null,null,null,null,null,1,null,null,null,null,null,null,1,8,0.125]
["History","D-DT",34365,null,null,null,null,null,null,null,null,null,null,null,null,0,38,0]
["U.S. History","E",34365,null,null,null,null,null,null,null,null,null,null,null,null,0,21,0]
["Local History","F",34365,null,null,null,null,null,null,null,null,null,null,null,null,0,1,0]
["Geography","G",34365,null,1,null,null,null,null,null,null,null,null,null,null,1,2,0.5]
["Business, Law, Education, Music","H-M",34365,1,null,null,null,null,null,null,null,null,null,null,null,1,10,0.1]
["Art","N",34365,null,null,null,null,null,null,null,null,null,null,null,null,0,3,0]
["Greek Literature","PA",34365,2,null,null,null,null,null,null,null,null,null,null,null,2,20,0.1]
["Slavic and Russian Philosophy and Literature","PG",34365,null,null,null,null,null,null,null,null,null,null,null,null,0,17,0]
["Near East Language and Literature","PJ",34365,null,null,null,null,null,null,null,null,null,null,null,null,0,4,0]
["Arabic Language and Literature","PK",34365,null,null,null,null,null,null,null,null,null,null,null,null,0,5,0]
["Asian Language and Literature","PL",34365,1,null,1,null,null,null,null,null,null,null,null,null,2,24,8.3333333333333329E-2]
["French Literature","PQ1-PQ3999",34365,2,null,1,null,null,null,null,null,null,null,null,null,3,38,7.8947368421052627E-2]
["Italian Literature","PQ4001-PQ5999",34365,null,null,null,null,null,null,null,null,null,null,null,null,0,9,0]
["Spanish Literature","PQ6001-PQ8999",34365,2,null,null,null,null,null,null,null,null,null,null,null,2,8,0.25]
["English Literature","PR",34365,10,2,8,null,2,null,null,null,null,null,null,null,22,166,0.13253012048192772]
["American Literature","PS",34365,3,2,2,null,null,null,null,null,null,null,null,null,7,109,6.4220183486238536E-2]
["German Literature","PT1-PT9999",34365,1,null,null,null,null,null,null,null,null,null,null,null,1,29,3.4482758620689655E-2]
["Pure Sciences","Q-QZ",34365,null,null,null,null,1,null,null,null,null,null,null,null,1,12,8.3333333333333329E-2]
["Technology","T-TZ",34365,null,null,null,null,null,null,null,null,null,null,null,null,0,1,{"$f":"(P499/Q499)","v":0}]
["Totals",null,null,{"$f":"SUM(D473:D499)","v":24},15,13,2,6,1,0,0,0,0,0,0,{"$f":"SUM(D500:O500)","v":61},{"$f":"SUM(Q473:Q499)","v":701},{"$f":"(P500/Q500)","v":8.7018544935805991E-2}]
["Cumulative Totals"]
[]
["SAMPLER","SAMPLER"]
["Samplers--General","Samp",34365,4,6,7,5,3,2,null,null,null,null,null,null,{"$f":"SUM(D504:O504)","v":27},24,{"$f":"(P504/Q504)","v":1.125}]
["Samplers--New Hardback Best Sellers Fiction","Samp-BestF",34365,13,24,20,12,10,8,null,null,null,null,null,null,87,147,0.59183673469387754]
["Samplers--New Hardback Science Fiction/Fantasy","Samp-BestS",34365,57,71,47,17,41,44,null,null,null,null,null,null,277,359,0.77158774373259054]
["Samplers--Biography","Samp-Biog",34365,22,9,11,1,1,8,null,null,null,null,null,null,52,102,0.50980392156862742]
["Samplers--Fantasy","Samp-Fan",34365,197,199,238,133,165,144,null,null,null,null,null,null,1076,2217,0.48534055029318901]
["Samplers--Fiction","Samp-Fic",34365,39,35,52,33,32,39,null,null,null,null,null,null,230,517,0.4448742746615087]
["Sampler--Graphic Novels","Samp-Graphic",34365,452,311,316,205,241,278,null,null,null,null,null,null,1803,353,5.1076487252124645]
["Samplers--Humor","Samp-Humor",34365,174,115,102,61,59,79,null,null,null,null,null,null,590,166,3.5542168674698793]
["Sampler--Mormon Fiction","Samp-Mormn",34365,109,123,94,52,85,76,null,null,null,null,null,null,539,823,0.65492102065613611]
["Samplers--Motivation","Samp-Motiv",34365,31,26,17,15,14,20,null,null,null,null,null,null,123,190,0.64736842105263159]
["Samplers--Mystery","Samp-Myst",34365,88,63,65,62,51,57,null,null,null,null,null,null,386,1913,0.20177731312075275]
["Samplers--Non-Fiction","Samp-Nfic",34365,26,23,16,5,11,19,null,null,null,null,null,null,100,141,0.70921985815602839]
["Samplers--Romance","Samp-Rom",34365,48,27,52,32,56,37,null,null,null,null,null,null,252,618,0.40776699029126212]
["Samplers--Science Fiction","Samp-Scifi",34365,77,47,109,42,47,66,null,null,null,null,null,null,388,1067,0.36363636363636365]
["Samplers--Western","Samp-West",34365,12,19,23,7,46,20,null,null,null,null,null,null,127,178,0.7134831460674157]
["Totals",null,null,{"$f":"SUM(D504:D518)","v":1349},1098,1169,682,862,897,0,0,0,0,{"$f":"SUM(N504:N518)","v":0},0,{"$f":"SUM(D519:O519)","v":6057},{"$f":"SUM(Q504:Q518)","v":8815},0.6871242200794101]
[]
["LRC","LRC",null,329,329,193,31,30,63,null,null,null,null,null,null,{"$f":"SUM(D521:O521)","v":975}]
[]
[]
["SUDOC","SUDOC"]
["Agriculture Department","A",34201,null,3,4,2,4,null,null,null,null,null,null,null,{"$f":"SUM(D525:O525)","v":13}]
["National Archives and Records Administration","AE",34201,1,1,2,null,null,2,null,null,null,null,null,null,6]
["Commerce Department","C",34201,null,2,1,null,3,1,null,null,null,null,null,null,7]
["Federal Communications Commission","CC",34201,null,null,null,null,null,null,null,null,null,null,null,null,0]
["Civil Rights Commission","CR",34201,null,null,null,1,null,null,null,null,null,null,null,null,1]
["Defense Department","D",34201,null,null,4,null,14,null,null,null,null,null,null,null,18]
["Energy Department","E",34201,null,1,2,1,null,1,null,null,null,null,null,null,5]
["Education Department","ED",34201,1,1,1,1,1,1,null,null,null,null,null,null,6]
["Environmental Protection Agency","EP",34201,null,null,1,null,1,1,null,null,null,null,null,null,3]
["Federal Credit Administration","FCA",34201,null,null,null,null,null,null,null,null,null,null,null,null,0]
["Federal Emergency Management Agency","FEM",34201,null,null,null,null,null,1,null,null,null,null,null,null,1]
["Federal Trade Commission","FT",34201,null,1,1,null,null,null,null,null,null,null,null,null,2]
["Forengn-Trade Zones Board","FTZ",34201,null,null,null,null,null,null,null,null,null,null,null,null,0]
["General Accounting Office","GA  ",34201,null,null,null,null,1,null,null,null,null,null,null,null,1]
["Government Printing Office","GP",34201,null,null,null,null,null,null,null,null,null,null,null,null,0]
["General Services Administration","GS",34201,null,null,1,null,3,null,null,null,null,null,null,null,4]
["Health and Human Services Department","HE",34201,null,1,2,1,3,1,null,null,null,null,null,null,8]
["Housing and Urban Development Department","HH",34201,null,null,null,null,null,1,null,null,null,null,null,null,1]
["Interior Department","I",34201,6,2,null,2,6,2,null,null,null,null,null,null,18]
["U. S. Information Agency","IA   ",34201,null,null,null,null,null,null,null,null,null,null,null,null,0]
["Interstate Commerce Commission","IC",34201,null,null,null,null,null,null,null,null,null,null,null,null,0]
["International Trade Commission","ITC",34201,null,null,null,null,null,null,null,null,null,null,null,null,0]
["Justice Department","J",34201,null,5,null,4,null,null,null,null,null,null,null,null,9]
["Judiciary","JU",34201,null,null,null,null,null,null,null,null,null,null,null,null,0]
["Labor Department","L",34201,1,1,1,1,null,null,null,null,null,null,null,null,4]
["Library of Congress","LC",34201,null,null,null,null,1,null,null,null,null,null,null,null,1]
["National Labor Relations Board","LR",34201,null,null,null,null,null,null,null,null,null,null,null,null,0]
["Merit Systems Protection Board","MS",34201,null,null,null,null,null,null,null,null,null,null,null,null,0]
["National Aeronautics and Space Administration","NAS",34201,null,null,16,null,null,null,null,null,null,null,null,null,16]
["National Credit Union Administration","NCU  ",34201,null,null,null,null,null,null,null,null,null,null,null,null,0]
["National Foundation of the Arts and the Humanities","NF",34201,null,null,null,null,null,null,null,null,null,null,null,null,0]
["National Science Foundation","NS",34201,null,null,null,null,null,null,null,null,null,null,null,null,0]
["United States Postal Service","P",34201,null,null,null,null,null,null,null,null,null,null,null,null,0]
["Peace Corps","PE   ",34201,null,null,null,null,null,null,null,null,null,null,null,null,0]
["Personnel Management Office","PM",34201,null,null,null,null,null,null,null,null,null,null,null,null,0]
["President of the United States","PR",34201,null,null,null,null,null,null,null,null,null,null,null,null,0]
["Executive Office of the President","PREX",34201,null,null,null,null,2,null,null,null,null,null,null,null,2]
["State Department","S",34201,6,2,2,null,3,21,null,null,null,null,null,null,34]
["Small Business Administration","SBA",34201,null,null,null,null,null,null,null,null,null,null,null,null,0]
["Securities and Exchange Commission","SE",34201,null,null,null,null,null,null,null,null,null,null,null,null,0]
["Smithsonian Institution","SI",34201,null,1,null,1,null,1,null,null,null,null,null,null,3]
["Social Security Administration","SSA",34201,null,null,null,null,null,null,null,null,null,null,null,null,0]
["Treasury Department","T",34201,null,null,null,null,1,10,null,null,null,null,null,null,11]
["Transportation Department","TD",34201,null,1,null,1,null,null,null,null,null,null,null,null,2]
["Veteran Affairs Department","VA",34201,null,null,null,null,null,null,null,null,null,null,null,null,0]
["Congress","X",34201,3,null,28,null,null,4,null,null,null,null,null,null,35]
["Congressional Documents","Y1",34201,null,null,null,null,null,1,null,null,null,null,null,null,1]
["Miscellaneous Agencies","Y3",34201,null,1,12,1,1,null,null,null,null,null,null,null,15]
["Congressional Committees","Y4-Y9",34201,5,22,11,16,8,14,null,null,null,null,null,null,76]
["Congressional Budget Office","Y10",34201]
["Totals",null,null,{"$f":"SUM(D525:D574)","v":23},45,89,32,52,62,null,0,0,0,0,{"$f":"SUM(O525:O574)","v":0},{"$f":"SUM(D575:O575)","v":303}]
[]
[" "," "]
["CANADIAN DOCUMENTS","CANDOC",34143,0,0,0,0,0,0,null,null,null,null,null,0,{"$f":"SUM(D578:O578)","v":0}]
[]
["DEWEY COLLECTION STILL BEING CHECKED OUT","DEWEY",null,0,1,2,0,8,1,null,null,null,null,null,null,{"$f":"SUM(D580:O580)","v":12}]
[]
["Grand Total",null,null,{"$f":"D395+D398+D400+D401+D402+D430+D458+D469+D500+D519+D521+D575+D578+D580","v":16259},18075,18415,9355,12378,12097,0,0,0,0,0,0,{"$f":"SUM(D582:O582)","v":86579},{"$f":"Q395+Q398+Q400+Q401+Q402+Q430+Q458+Q469+Q500+Q519","v":2383748},{"$f":"P583/Q582","v":3.5779369295747702E-2}]
[null,null,null,null,null,null,null,null,null,null,null,null,null,null,null,{"$f":"P395+P398+P400+P401+P402+P430+P458+P469+P500+P519","v":85289}]

{"sheet":"Report Sections","index":1,"n_rows":30,"n_cols":2,"rows_kept":30,"cut":false,"hidden":false,"merged":[]}
["Section ","Title"]
["ASIAN LIBRARY","Report Log for Asian General Chinese"]
["ASIAN LIBRARY","Report Log for Asian General General"]
["ASIAN LIBRARY","Report Log for Asian General Japanese"]
["ASIAN LIBRARY","Report Log for Asian General Korean"]
["CANADIAN DOCUMENTS","Report Log for Lee Charge Statistics CANDOC"]
["LRC","Report Log for Lee Charge Statistics LRC "]
["CURRICULUM LIBRARY","Report Log for Lee Charge Statistics Curriculum "]
["JUVENILE","Report Log for Lee Charge Statistics Juvenile "]
["MIDDLE EAST COLLECTION","Report Log for Lee Charge Statistics ME,ICE,WELSH "]
["MUSIC LIBRARY","Report Log for Lee Charge Statistics Music"]
["SUDOC","Report Log for Lee Charge Statistics SUDOC "]
["SAMPLER","Report Log for Lee Charge Statistics Sampler"]
["DEWEY COLLECTION STILL BEING CHECKED OUT","Report Log for Lee Charge Statistics Dewey "]
["GENERAL STACKS","Report Log for Lee Charge Statistics LC A-BX "]
["GENERAL STACKS","Report Log for Lee Charge Statistics LC BX-DL "]
["GENERAL STACKS","Report Log for Lee Charge Statistics LC DP-F "]
["GENERAL STACKS","Report Log for Lee Charge Statistics LC G-HC "]
["GENERAL STACKS","Report Log for Lee Charge Statistics LC HC-HE "]
["GENERAL STACKS","Report Log for Lee Charge Statistics LC HF-HU "]
["GENERAL STACKS","Report Log for Lee Charge Statistics LC HV-LB "]
["GENERAL STACKS","Report Log for Lee Charge Statistics LC LB-LT,N-P "]
["GENERAL STACKS","Report Log for Lee Charge Statistics LC PA-PG "]
["GENERAL STACKS","Report Log for Lee Charge Statistics LC PH-PN "]
["GENERAL STACKS","Report Log for Lee Charge Statistics LC PN-PR "]
["GENERAL STACKS","Report Log for Lee Charge Statistics LC PR-Q "]
["GENERAL STACKS","Report Log for Lee Charge Statistics LC QA-QR "]
["GENERAL STACKS","Report Log for Lee Charge Statistics LC R-TH "]
["GENERAL STACKS","Report Log for Lee Charge Statistics LC TJ-ZA "]
["WORLD CLASSICS","Report Log for Lee Charges World Classics "]

{"sheet":"Mappings","index":2,"n_rows":583,"n_cols":3,"rows_kept":583,"cut":false,"hidden":false,"merged":[]}
["Description","Call Number","Full Call Number"]
["GENERAL STACKS"]
["Collections, Encyclopedias, Dictionaries, Indexes, Etc","AC-AL","AC-AL"]
["Museums, Collectors and Collecting","AM","AM"]
["Newspapers, Periodicals, Societies, Yearbooks, Est","AN-AZ","AN-AZ"]
["Philosophy: Periodicals, Societies, Con","B1-B68","B000001-B000068"]
["Philosophy: History and Systems","B69-B9999","B000069-B009999"]
["Logic","BC","BC"]
["Speculative Philosophy","BD","BD"]
["Psychology","BF1-BF1000","BF000001-BF001000"]
["Parapsychology, Occult Sciences","BF1001-BF9999","BF001001-BF009999"]
["Aesthetics","BH","BH"]
["Ethics, Social Usages, Etiquette","BJ","BJ"]
["Religions.  Mythology.  Rationalism","BL","BL"]
["Judaism","BM","BM"]
["Islam.  Bahaism.  Theosophy, etc.","BP","BP"]
["Buddhism","BQ","BQ"]
["Christianity (General)","BR","BR"]
["Bible","BS","BS"]
["Doctrinal Theology","BT","BT"]
["Practical Theology","BV","BV"]
["Eastern Christian Churches","BX1-BX799","BX000001-BX000799"]
["Roman Catholic Churches","BX800-BX4799","BX000800-BX004799"]
["Protestantism","BX4800-BX8599","BX004800-BX008599"]
["Mormonism-General, Natural Theology","BX8600-BX8619","BX008600-BX008619"]
["Mormonism-Scriptures","BX8620-BX8629","BX008620-BX008629"]
["Mormonism-Doctrinal Theology","BX8630-BX8639","BX008630-BX008639"]
["Mormonism-Practical Theology","BX8640-BX8649","BX008640-BX008649"]
["Mormonism-Ecclesiastical Theology","BX8650-BX8659","BX008650-BX008659"]
["Mormonism-Religious Education","BX8660-BX8669","BX008660-BX008669"]
["Mormonism-Biography & History","BX8670-BX8679","BX008670-BX008679"]
["Mormonism-Fine Arts & Fiction","BX8680-BX8689","BX008680-BX008689"]
["Mormonims-Church Schisms","BX8690-BX8699","BX008690-BX008699"]
["Protestantism","BX8700-BX9999","BX008700-BX009999"]
["Aux.Sciences of History: General, Hist. of Civilization","C-CB","C-CB"]
["Archaeology (General)","CC","CC"]
["Diplomatics.  Archives.  Seals, Chronology","CD-CE","CD-CE"]
["Numismatics","CJ","CJ"]
["Epigraphy","CN","CN"]
["Heraldry, Genealogy","CR-CS","CR-CS"]
["Biography","CT","CT"]
["History (General)","D1-D899","D000001-D000899"]
["History of Europe, General","D900-D2009","D000900-D002009"]
["History: Great Britain","DA","DA"]
["History: Central Europe","DAW","DAW"]
["History: Austria, Austro-Hungarian Empire","DB","DB"]
["History: France","DC","DC"]
["History: Germany","DD","DD"]
["History: Mediterranean Region, Greco-Roman","DE","DE"]
["History: Greece","DF","DF"]
["History: Italy","DG","DG"]
["History: Netherlands","DH-DJ","DH-DJ"]
["History: Eastern Europe","DJK","DJK"]
["History: Russia, U.S.S.R.","DK","DK"]
["History: Northern Europe, Scandinavia","DL","DL"]
["History: Spain","DP1-DP500","DP000001-DP000500"]
["History: Portugal","DP501-DP999","DP000501-DP000999"]
["History: Switzerland","DQ","DQ"]
["History: Eastern Europe.  Balkan Peninsula","DR","DR"]
["History: Asia","DS1-DS40","DS000001-DS000040"]
["History: Near East","DS41-DS329","DS000041-DS000329"]
["History: Southern Asia","DS330-DS499","DS000330-DS000499"]
["History: Southeastern Asia","DS500-DS700","DS000500-DS000700"]
["History: China","DS701-DS800","DS000701-DS000800"]
["History: Japan","DS801-DS903","DS000801-DS000903"]
["History: Korea","DS904-DS999","DS000904-DS000999"]
["History: Africa","DT1-DT42","DT000001-DT000042"]
["History: Egypt and Sudan, North Africa","DT43-DT347","DT000043-DT000347"]
["History: Sub-Saharan Africa, South Africa","DT348-DT3415","DT000348-DT003415"]
["History: Oceania (South Seas)","DU1-DU619","DU000001-DU000619"]
["Hawaii","DU620-DU629","DU000620-DU000629"]
["History: Oceania (South Seas)","DU630-DU999","DU000630-DU000999"]
["History: Gypsies","DX","DX"]
["History of Americas: General, Indians","E1-E139","E000001-E000139"]
["United States History","E140-E999","E000140-E000999"]
["State and Local History: Generally East of Utah","F1-F820","F000001-F000820"]
["Utah","F821-F835","F000821-F000835"]
["State and Local History: Generally West of Utah","F836-F999","F000836-F000999"]
["History: British America, Canada","F1000-F1200","F001000-F001200"]
["History: Mexico","F1201-F1400","F001201-F001400"]
["History: Central America, Caribbean Area","F1401-F2200","F001401-F002200"]
["History: South America","F2201-F9999","F002201-F009999"]
["Geography (General)","G1-G999","G000001-G000999"]
["Atlases","G1000-G3159","G001000-G003159"]
["Maps","G3160-G9999","G003160-G009999"]
["Mathematical Geography, Cartography","GA","GA"]
["Physical Geography, Geomorphology, Hydrology","GB","GB"]
["Oceanology","GC","GC"]
["Environmental Science","GE","GE"]
["Anthropogeography","GF","GF"]
["Anthrogeography, Ethnography, Prehistoric Archaeology","GN","GN"]
["Folklore","GR","GR"]
["Manners and Customs (General)","GT","GT"]
["Recreation","GV1-GV200","GV000001-GV000200"]
["Physical Training","GV201-GV556","GV000201-GV000556"]
["Sports","GV557-GV1198","GV000557-GV001198"]
["Games Amusements, Circuses, Carnivals, etc","GV1199-GV9999","GV001199-GV009999"]
["The Social Sciences in General","H","H"]
["Statistics","HA","HA"]
["Economic Theory","HB","HB"]
["Economic History & Conditions: General, Ancient World","HC1-HC42","HC000001-HC000042"]
["Economic History & Conditions: Modern Economic History","HC51-HC60","HC000051-HC000060"]
["Economic History & Conditions: Special Topics","HC79-HC92","HC000079-HC000092"]
["Economic History & Conditions: U.S., Canada","HC94-HC120","HC000094-HC000120"]
["Economic History & Conditions: Latin America","HC121-HC160","HC000121-HC000160"]
["Economic History & Conditions: South America","HC161-HC239","HC000161-HC000239"]
["Economic History & Conditions: Europe","HC240-HC246","HC000240-HC000246"]
["Economic History & Conditions: Great Britain","HC251-HC260.5","HC000251-HC000260.5"]
["Economic History & Conditions: Europe","HC261-HC330","HC000261-HC000330"]
["Economic History & Conditions: Slavic","HC331-HC340.6","HC000331-HC000340.6"]
["Economic History & Conditions: Europe","HC341-HC407","HC000341-HC000407"]
["Economic History & Conditions: Middle East","HC411-HC420","HC000411-HC000420"]
["Economic History & Conditions: General Asia, China","HC420.3-HC430.4","HC000420.3-HC000430.4"]
["Economic History & Conditions: Taiwan","HC430.5","HC000430.5"]
["Economic History & Conditions: India","HC430.6-HC440.4","HC000430.6-HC000440.4"]
["Economic History & Conditions: Pakistan","HC440.5","HC000440.5"]
["Economic History & Conditions: South East Asia","HC440.6-HC460","HC000440.6-HC000460"]
["Economic History & Conditions: Japan","HC461-HC465","HC000461-HC000465"]
["Economic History & Conditions: Korea","HC466-HC470","HC000466-HC000470"]
["Economic History & Conditions: Near East","HC471-HC499","HC000471-HC000499"]
["Economic History & Conditions: Africa","HC500-HC584","HC000500-HC000584"]
["Economic History & Conditions: Oceans: Islands, Lands","HC585-HC740","HC000585-HC000740"]
["Economic History & Conditions: Near East","HC800-HC835","HC000800-HC000835"]
["Economic History & Conditions: Africa","HC840-HC1085","HC000840-HC001085"]
["Economics: Production","HD1-HD100","HD000001-HD000100"]
["Economics: Land","HD101-HD1400","HD000101-HD001400"]
["Agricultural Economics","HD1401-HD2320","HD001401-HD002320"]
["Economics: Industry","HD2321-HD4800","HD002321-HD004800"]
["Labor","HD4801-HD8999","HD004801-HD008999"]
["Special Industries and Trades","HD9000-HD9999","HD009000-HD009999"]
["Transportation","HE1-HE7600","HE000001-HE007600"]
["Telecommunications Industry","HE7601-HE9760","HE007601-HE009760"]
["Transportation","HE9761-HE9999","HE009761-HE009999"]
["Commerce","HF1-HF1400","HF000001-HF001400"]
["Commercial Policy","HF1401-HF5000","HF001401-HF005000"]
["Business","HF5001-HF5400","HF005001-HF005400"]
["Marketing","HF5401-HF5545","HF005401-HF005545"]
["Office Management","HF5546-HF5600","HF005546-HF005600"]
["Accounting, Business Math","HF5601-HF5716","HF005601-HF005716"]
["Business Communications, Shipping","HF5717-HF5800","HF005717-HF005800"]
["Advertising","HF5801-HF9999","HF005801-HF009999"]
["Finance","HG1-HG1500","HG000001-HG001500"]
["Banking & Credit","HG1501-HG3769","HG001501-HG003769"]
["Foreign Exchange","HG3810-HG4000","HG003810-HG004000"]
["Finance Management","HG4001-HG8010","HG004001-HG008010"]
["Insurance","HG8011-HG9999","HG008011-HG009999"]
["Public Finance","HJ","HJ"]
["Sociology: General Works, Theory","HM","HM"]
["Social Problems","HN1-HN49","HN000001-HN000049"]
["Social History: United States","HN50-HN90","HN000050-HN000090"]
["Social History: Other Countries","HN101-HN991","HN000101-HN000991"]
["Family, Marriage, Gender Role","HQ1-HQ1099","HQ000001-HQ001099"]
["Women, Feminism","HQ1100-HQ9999","HQ001100-HQ009999"]
["Societies: Secret, Benevolent, Etc.","HS","HS"]
["Communities, Classes, Races","HT-HU","HT-HU"]
["Social Work","HV1-HV4996","HV000001-HV004996"]
["Substance Abuse","HV4997-HV6000","HV004997-HV006000"]
["Criminology","HV6001-HV9999","HV006001-HV009999"]
["Socialism, Communism, Anarchism, Utopian","HX","HX"]
["Political Science, Constitutional History, General","J-JK","J-JK"]
["Constitutional History & Administration: British","JL","JL"]
["Constitutional History & Administration","JN","JN"]
["Constitutional History: Asia, Near East, Africa, Australia, Ocean","JQ","JQ"]
["Local Government","JS","JS"]
["Colonies and Colonization","JV1-JV6000","JV000001-JV006000"]
["Emigration & Immigration","JV6001-JV9999","JV006001-JV009999"]
["International Law","JX","JX"]
["International Relations","JZ","JZ"]
["Law: General","K-KC","K-KC"]
["Law: United Kingdom and Ireland","KD","KD"]
["Law: Canada","KE-KEZ","KE-KEZ"]
["Law: U.S. ","KF-KFZ","KF-KFZ"]
["Law: Other Countries","KG-KWX","KG-KWX"]
["Education-General","L","L"]
["History of Education","LA-LB4","LA-LB000004"]
["Theory & Practice","LB5-LB1050","LB000005-LB001050"]
["Educational Psychology","LB1051-LB1100","LB001051-LB001100"]
["Child Study, Pre-school - 12","LB1101-LB1704","LB001101-LB001704"]
["Education and Train of Teachers","LB1705-LB2299","LB001705-LB002299"]
["Higher Education","LB2300-LB2798","LB002300-LB002798"]
["Consulting, Admin","LB2799-LB3200","LB002799-LB003200"]
["School Buildings","LB3201-LB9999","LB003201-LB009999"]
["Special Aspects of Education","LC1-LC1098","LC000001-LC001098"]
["Multicultural Education","LC1099","LC001099"]
["Education of Special Classes of Persons, General","LC1100-LC2637","LC001100-LC002637"]
["Hispanic American Education","LC2638-LC2698","LC002638-LC002698"]
["Afro-American Education","LC2699-LC3000","LC002699-LC003000"]
["Education of Special Classes of Persons, Other Groups","LC3001-LC3899","LC003001-LC003899"]
["Special Education","LC3900-LC5160","LC003900-LC005160"]
["Education Extension, Adult Education, Continuing Education","LC5161-LC9999","LC005161-LC009999"]
["Education: Individual Institutions: Uni","LD","LD"]
["Education: Institutions","LE-LT","LE-LT"]
["Visual Arts (General)","N","N"]
["Architecture","NA","NA"]
["Sculpture","NB","NB"]
["Graphic Arts (General), Drawing, Design","NC","NC"]
["Painting","ND","ND"]
["Print Media: Prinkmaking, Engraving, Li","NE","NE"]
["Decorative Arts, Applied Arts, Crafts","NK","NK"]
["Arts in General","NX","NX"]
["Linguistics, General","P1-P85","P000001-P000085"]
["Communication","P86-P97","P000086-P000097"]
["Linguistics ","P98-P9999","P000098-P009999"]
["Classical Philology","PA1-PA2999","PA000001-PA002999"]
["Classical Literature","PA3000-PA3049","PA003000-PA003049"]
["Greek Literature","PA3050-PA5999","PA003050-PA005999"]
["Latin Literature","PA6000-PA9999","PA006000-PA009999"]
["Modern Languages: General","PB1-PB1000","PB000001-PB001000"]
["Celtic Languages and Literatures","PB1001-PB9999","PB001001-PB009999"]
["Romanic Philology and Languages: General","PC1-PC1000","PC000001-PC001000"]
["Italian Language, Sardinian Language and Literature","PC1001-PC2000","PC001001-PC002000"]
["French Language","PC2001-PC3800","PC002001-PC003800"]
["Catalan Language and Literature","PC3801-PC4000","PC003801-PC004000"]
["Spanish Language","PC4001-PC5000","PC004001-PC005000"]
["Portuguese Language","PC5001-PC9999","PC005001-PC009999"]
["Germanic Philology and Languages","PD ","PD"]
["English Philology and Language","PE","PE"]
["Dutch, Flemish, Friesian Language and Literature","PF1-PF3000","PF000001-PF003000"]
["German Language","PF3001-PF9999","PF003001-PF009999"]
["Slavic Language & Literature","PG1-PG800","PG000001-PG000800"]
["Bulgarian Language and Literature","PG801-PG1160","PG000801-PG001160"]
["Macedonian Language and Literature","PG1161-PG1170","PG001161-PG001170"]
["Serbo-Croation, Slovenian Language and Literature","PG1171-PG2000","PG001171-PG002000"]
["Russian Language","PG2001-PG2899","PG002001-PG002899"]
["Russian Literature ","PG2900-PG3800","PG002900-PG003800"]
["Ukranian Language and Literature","PG3801-PG4000","PG003801-PG004000"]
["Czech, Slovak, Sorbian Language and Literature","PG4001-PG6000","PG004001-PG006000"]
["Polish Language and Literature","PG6001-PG8000","PG006001-PG008000"]
["Baltic Languages","PG8001-PG9500","PG008001-PG009500"]
["Albanian","PG9501-PG9999","PG009501-PG009999"]
["Finnish Language and Literature","PH1-PH1200","PH000001-PH001200"]
["Hungarian, Ugrian Languages and Literature","PH1201-PH5000","PH001201-PH005000"]
["Basque Language and Literature","PH5001-PH9999","PH005001-PH009999"]
["Oriental Philology and Literature, Egyptology, etc","PJ ","PJ"]
["Arabic, Ethiopian, Indo-Aryan, Caucasian Languages & Lit","PK","PK"]
["Ural-Altaic, East Asiatic Languages and Literature","PL1-PL500","PL000001-PL000500"]
["Japanese Language and Literature","PL501-PL900","PL000501-PL000900"]
["Korean Language and Literature","PL901-PL1000","PL000901-PL001000"]
["Chinese Language and Literature","PL1001-PL3300","PL001001-PL003300"]
["Non-Chinese Languages of China","PL3301-PL7999","PL003301-PL007999"]
["African Languages","PL8000-PL9999","PL008000-PL009999"]
["American Languages, Creole, Artificial Languages","PM","PM"]
["Literature: periodicals, yearbooks, Soc","PN1-PN44","PN000001-PN000044"]
["Literature: Theory, Philosophy, Esthetics, Criticism","PN45-PN100","PN000045-PN000100"]
["Authorship","PN101-PN440","PN000101-PN000440"]
["Literary History","PN441-PN1009","PN000441-PN001009"]
["Poetry, the Performing Arts, Show Biz","PN1010-PN1599","PN001010-PN001599"]
["The Drama: general, technique of composition, history","PN1600-PN1864","PN001600-PN001864"]
["Historical and Religious Plays, Tragedy, etc.","PN1865-PN1989","PN001865-PN001989"]
["Booadcasting","PN1990-PN1992","PN001990-PN001992"]
["Motion Pictures","PN1993-PN1999","PN001993-PN001999"]
["The Theater: General","PN2000-PN2084","PN002000-PN002084"]
["The Theater: The Stage, Accessories, History","PN2085-PN2219","PN002085-PN002219"]
["The Theater in the United States & the Americas","PN2220-PN2569","PN002220-PN002569"]
["The Theater in Europe","PN2570-PN2859","PN002570-PN002859"]
["The Theater in Asia, Africa, and Oceania","PN2860-PN3034","PN002860-PN003034"]
["Jewish Theater","PN3035-PN3150","PN003035-PN003150"]
["The Theater: Amateur and College Theater","PN3151-PN3194","PN003151-PN003194"]
["The Theater: Minstrel Shows, Spectacles","PN3195-PN3310","PN003195-PN003310"]
["Prose, Oratory, Short Story, Diaries, Letters, Essays, etc","PN3311-PN4698","PN003311-PN004698"]
["Journalism and the Periodical Press","PN4699-PN6009","PN004699-PN006009"]
["Literature: General Collections, Quotations, Poetry","PN6010-PN6120","PN006010-PN006120"]
["Collections of Orations, Letters, Essays, Humor, Proverbs","PN6121-PN6699","PN006121-PN006699"]
["Comic books, strips","PN6700-PN9999","PN006700-PN009999"]
["French Literature","PQ1-PQ4000","PQ000001-PQ004000"]
["Italian Literature","PQ4001-PQ6000","PQ004001-PQ006000"]
["Spanish Literature","PQ6001-PQ7079","PQ006001-PQ007079"]
["Spanish Literature in Spanish America (G","PQ7080-PQ7099","PQ007080-PQ007099"]
["Spanish Literature of Mexico, Former U.S.","PQ7100-PQ7360","PQ007100-PQ007360"]
["Spanish Literature of West Indies and Ce","PQ7361-PQ7550","PQ007361-PQ007550"]
["Spanish Literature of South America, etc","PQ7551-PQ8999","PQ007551-PQ008999"]
["Portuguese Literature","PQ9000-PQ9499","PQ009000-PQ009499"]
["Portuguese Literature of Brazil, to 1800","PQ9500-PQ9696","PQ009500-PQ009696"]
["Portuguese Literature of Africa, Asia, Australia","PQ9697-PQ9999","PQ009697-PQ009999"]
["English Literature: Literary History","PR1-PR1097","PR000001-PR001097"]
["English Literature: Collections","PR1098-PR1489","PR001098-PR001489"]
["Anglo-Saxon Literature","PR1490-PR1802","PR001490-PR001802"]
["Anglo-Norman and Early Middle Englsih Literature","PR1803-PR2198","PR001803-PR002198"]
["English Renaissance Literature, Prose, Drama","PR2199-PR2749","PR002199-PR002749"]
["Shakespeare","PR2750-PR3134","PR002750-PR003134"]
["English Renaissance Drama: Plays by Pla","PR3135-PR3290","PR003135-PR003290"]
["English Literature, 17th and 18th Century","PR3291-PR3990","PR003291-PR003990"]
["English Literature, 19th Century","PR3991-PR5999","PR003991-PR005999"]
["English Literature, 1900-1960","PR6000-PR6049","PR006000-PR006049"]
["English Literature, 1961-","PR6050-PR8308","PR006050-PR008308"]
["English Literature: Provincial, Colonial, Canada, Latin Amer","PR8309-PR9999","PR008309-PR009999"]
["American Literature: General, Criticism","PS1-PS500","PS000001-PS000500"]
["American Literature: Collections","PS501-PS699","PS000501-PS000699"]
["American Literature: Colonial Period","PS700-PS990","PS000700-PS000990"]
["American Literature: 19th Century","PS991-PS3499","PS000991-PS003499"]
["American Literature: 1900-1960","PS3500-PS3549","PS003500-PS003549"]
["American Literature: 1961-","PS3550-PS8000","PS003550-PS008000"]
["Canadian Literature: English and French","PS8001-PS9999","PS008001-PS009999"]
["German Literature","PT1-PT5000","PT000001-PT005000"]
["Dutch Literature","PT5001-PT6471","PT005001-PT006471"]
["Afrikaans Literature","PT6500-PT6592","PT006500-PT006592"]
["Scandinavian Literature: Norwegian, Danish, Swedish","PT7000-PT9999","PT007000-PT009999"]
["Science Fiction and Fantasy","PZ","PZ"]
["Science (General) (B)","Q1-Q294","Q000001-Q000294"]
["Cybernetics","Q295-Q350","Q000295-Q000350"]
["Science (General) (B)","Q351-Q9999","Q000351-Q009999"]
["Mathematics (General)","QA1-QA73","QA000001-QA000073"]
["Computer Science","QA74-QA76","QA000074-QA000076.999"]
["Mathematics, Arithmetic, Algebra","QA77-QA266","QA000077-QA000266"]
["Computer Science (Machine Theory)","QA267-QA268","QA000267-QA000268"]
["Probability and Statistics","QA269-QA280","QA000269-QA000280"]
["Numerical Analysis, Calculus, Geometry, Trigonometry","QA281-QA999","QA000281-QA000999"]
["Astronomy","QB","QB"]
["Physics","QC1-QC800","QC000001-QC000800"]
["Geophysics, Cosmic Physics, Meteorology, Climatology","QC801-QC999","QC000801-QC000999"]
["Chemistry (General)","QD1-QD70","QD000001-QD000070"]
["Analytical Chemistry","QD71-QD145","QD000071-QD000145"]
["Inorganic Chemistry","QD146-QD240","QD000146-QD000240"]
["Organic Chemistry","QD241-QD449","QD000241-QD000449"]
["Physical and Theoretical Chemistry","QD450-QD900","QD000450-QD000900"]
["Crystallography","QD901-QD999","QD000901-QD000999"]
["Geology (General)","QE1-QE64","QE000001-QE000064"]
["Regional Geology","QE65-QE350","QE000065-QE000350"]
["Mineralogy, Petrology","QE351-QE639","QE000351-QE000639"]
["Stratigraphy, Paleontology","QE640-QE900","QE000640-QE000900"]
["Paleobotany","QE901-QE999","QE000901-QE000999"]
["Natural History, Microscopy, Biology (General)","QH1-QH505","QH000001-QH000505"]
["Molecular Biology","QH506","QH000506"]
["Biology (General)","QH507-QH999","QH000507-QH000999"]
["Botany","QK","QK"]
["Zoology","QL","QL"]
["Anatomy and Physiology","QM-QP","QM-QP"]
["Microbiology (B)","QR","QR"]
["Medicine (General)","R","R"]
["Medicine and the State (B)","RA1-RA420","RA000001-RA000420"]
["Public Health (B)","RA421-RA790","RA000421-RA000790"]
["Medical Geography, Hospitals, Forensic Medicine Toxicology","RA791-RA1299","RA000791-RA001299"]
["Pathology (B)","RB","RB"]
["Internal Medicine, Medical Practice, Parasitic Diseases","RC1-RC253","RC000001-RC000253"]
["Neoplasma, Neoplastic Diseases (Cancer)","RC254-RC305","RC000254-RC000305"]
["Tuberculosis (B)","RC306-RC320","RC000306-RC000320"]
["Neuroscience","RC321-RC349","RC000321-RC000349"]
["Gene therapy","RC350","RC000350"]
["Neuroscience","RC351-RC422","RC000351-RC000422"]
["Speech and language disorders","RC423-RC428","RC000423-RC000428"]
["Neuroscience","RC429-RC434","RC000429-RC000434"]
["Psychiatry, Psychopathology, Neurology","RC435-RC569.5","RC000435-RC000569.5"]
["Mental retardation. Developmental disabilities","RC569.7-RC571","RC000569.7-RC000571"]
["Neuroscience","RC572-RC580","RC000572-RC000580"]
["Internal Medicine, Medical Practice, Parasitic Diseases","RC581-RC1199","RC000581-RC001199"]
["Sports Medicine","RC1200-RC1245","RC001200-RC001245"]
["Medicine: Other areas","RD-RS","RD-RS"]
["Nursing (B)","RT","RT"]
["Medicine: Other areas, incl Homeopathy","RV-RZ","RV-RZ"]
["Agriculture (General), Conservation of Natural Resources","S","S"]
["Plant Culture","SB","SB"]
["Forestry","SD","SD"]
["Animal Culture, Veterinary Medicine","SF","SF"]
["Fish Culture and Fisheries","SH","SH"]
["Hunting Sports","SK","SK"]
["Technology","T1-T384","T000001-T000384"]
["Computer Graphics","T385","T000385"]
["Technology","T386-T999","T000386-T000999"]
["Engineering: Civil Engineering, Highway, Bridge, etc","TA-TC","TA-TC"]
["Environmental Technology","TD","TD"]
["Engineering: Civil Engineering, Highway, Bridge, etc","TE-TG","TE-TG"]
["Building Construction","TH","TH"]
["Mechanical Engineering and Machinery","TJ","TJ"]
["Electrical Engineering, Electronics, Nuc","TK","TK"]
["Motor Vehicles, Aeronautics, Astronautic","TL","TL"]
["Mining Engineering and Metallurgy","TN","TN"]
["Chemical Technology, General","TP1-TP154","TP000001-TP000154"]
["Chemical Engineering","TP155-TP199","TP000155-TP000199"]
["Chemical Technology, Specific Areas","TP200-TP367","TP000200-TP000367"]
["Food Processing and Manufacture","TP368-TP465","TP000368-TP000465"]
["Chemical Technology, Specific Areas","TP466-TP9999","TP000466-TP009999"]
["Photography","TR","TR"]
["Manufacturing","TS1-TS1299","TS000001-TS001299"]
["Clothing & Textiles","TS1300-TS1865","TS001300-TS001865"]
["Manufacturing","TS1866-TS9999","TS001866-TS009999"]
["Handicrafts, Arts and Crafts","TT","TT"]
["Home Economics, Nutrition, Cookery","TX","TX"]
["Military Science","U-UZ","U-UZ"]
["Naval Science","V-VM","V-VM"]
["History of Books and Bookmaking","Z1-Z39","Z000001-Z000039"]
["Writing, Paleography","Z40-Z115","Z000040-Z000115"]
["Printing","Z116-Z550","Z000116-Z000550"]
["Library Science, Copyright, Intellectual Property","Z551-Z1000","Z000551-Z001000"]
["Bibliography, General","Z1001-Z1200","Z001001-Z001200"]
["National Bibliography: America, United States","Z1201-Z1364","Z001201-Z001364"]
["National Bibliography: Canada","Z1365-Z1410","Z001365-Z001410"]
["National Bibliography: Mexico, Central","Z1411-Z1999","Z001411-Z001999"]
["National Bibliography: Europe","Z2000-Z3000","Z002000-Z003000"]
["National Bibliography: Asia, Africa, Australia","Z3001-Z5050","Z003001-Z005050"]
["Subject and Personal Bibliography","Z5051-Z9999","Z005051-Z009999"]
["Information Resources","ZA","ZA"]
[]
["CURRICULUM LIBRARY (EDUCATION)","Curriculum","CURRICULUM"]
[]
["MIDDLE EAST COLLECTION","MEC,MEC-ARABIC,MEC-HEBREW,MEC-PERSN,MEC-TURK","MEC"]
["MIDDLE EAST COLLECTION","MEC,MEC-ARABIC,MEC-HEBREW,MEC-PERSN,MEC-TURK","MEC-ARABIC"]
["MIDDLE EAST COLLECTION","MEC,MEC-ARABIC,MEC-HEBREW,MEC-PERSN,MEC-TURK","MEC-HEBREW"]
["MIDDLE EAST COLLECTION","MEC,MEC-ARABIC,MEC-HEBREW,MEC-PERSN,MEC-TURK","MEC-PERSN"]
["MIDDLE EAST COLLECTION","MEC,MEC-ARABIC,MEC-HEBREW,MEC-PERSN,MEC-TURK","MEC-TURK"]
["ICELANDIC","ICELANDIC","ICELANDIC"]
["WELSH","WELSH","WELSH"]
[]
["MUSIC LIBRARY","Music"]
["Music: Uncataloged Scores?","A-L","A-L"]
["Music: Collected Sets of Scores","M1-M3","M000001-M000003"]
["Keyboard","M4-M39","M000004-M000039"]
["Instrumental Music","M40-M999","M000040-M000999"]
["Orchestral","M1000-M1499","M001000-M001499"]
["Opera","M1500-M1507","M001500-M001507"]
["Musicals","M1508-M1519","M001508-M001519"]
["Ballet, Dance, Film","M1520-M1527","M001520-M001527"]
["Choral, Orchestra","M1528-M1546","M001528-M001546"]
["Vocal Secular","M1547-M2000","M001547-M002000"]
["Vocal Sacred","M2001-M9999","M002001-M009999"]
["Dance","MD","MD"]
["Journals, non-circulating","ML1-ML5","ML000001-ML000005"]
["Reference, non-circulating","ML6-ML159","ML000006-ML000159"]
["Music History","ML160-ML384","ML000160-ML000389"]
["Music Biography","ML385-ML429","ML000390-ML000429"]
["Composition and Performance","ML430-ML459","ML000430-ML000459"]
["Musical Instruments","ML460-ML1099","ML000460-ML001099"]
["Genres","ML1100-ML3469","ML001100-ML003469"]
["Pop and Folk","ML3470-ML3799","ML003470-ML003799"]
["Science of Music","ML3800-ML9999","ML003800-ML009999"]
["Music Theory and Criticism","MT1-MT169","MT000001-MT000169"]
["Pedagogy","MT170-MT999","MT000170-MT009999"]
["Music: Uncataloged Scores?","N-ZA","N-Z"]
[]
["ASIAN LIBRARY","Asian"]
["General","A-DR","A-DR"]
["History: Asia","DS1-DS40","DS000001-DS000040"]
["History: Southwestern Asia, Ancient Orient, Near East","DS41-DS329","DS000041-DS000329"]
["History: Southern Asia","DS330-DS499","DS000330-DS000499"]
["History: Southeastern Asia","DS500-DS700","DS000500-DS000700"]
["History: China","DS701-DS800","DS000701-DS000800"]
["History: Japan","DS801-DS903","DS000801-DS000903"]
["History: Korea","DS904-DS999","DS000904-DS000999"]
["History: Africa","DT","DT"]
["Miscellaneous","DX-HB","DX-HB"]
["Economic History and Conditions","HC","HC"]
["Miscellaneous","HD-JN","HD-JN"]
["Constitutional History: Asia","JQ1-JQ1757","JQ000001-JQ001757"]
["Miscellaneous","JS-KKZ","JS-KKZ"]
["Law: Asia, Eurasia, Africa, Pacific Islands, Antarctica","KL-KZ","KL-KZ"]
["Education","L-LF","L-LF"]
["Education: Institutions; Asia, Africa, Oceania","LG","LG"]
["Miscellaneous","LH-PK","LH-PK"]
["Ural, East Asiatic Languages & Literature (General)","PL1-PL500","PL000001-PL000500"]
["Japanese Language and Literature","PL501-PL900","PL000501-PL000900"]
["Korean Language and Literature","PL901-PL1000","PL000901-PL001000"]
["Chinese Language and Literature","PL1001-PL3300","PL001001-PL003300"]
["Other Asian, Oceanic, African Languages and Literature","PL3301-PL9999","PL003301-PL009999"]
["Miscellaneous","PM-ZA","PM-ZA"]
[]
["JUVENILE","JUV"]
["Juv   ","Juv","JUV"]
["Bigbook","Juv-Bigbk","JUV-BIGBK"]
["Juv-Cirs","Juv-Cirs","JUV-CIRS"]
["Juv-Lock, Juv-Lock-F, Juv-Lock-Q","Juv-Lock","JUV-LOCK"]
["Juv-Q & F","Juv-Q & F","JUV-F"]
["Juv-Q & F","Juv-Q & F","JUV-Q"]
["Juv-Ref","Juv-Ref","JUV-REF"]
["Juv-Rev","Juv-Rev","JUV-REV"]
[]
["WORLD CLASSICS"]
["Collections","AC","AC"]
["Philosophy","B","B"]
["Psychology","BF","BF"]
["Ethics","BJ","BJ"]
["Religions","BL","BL"]
["Judaism","BM","BM"]
["Islam","BP","BP"]
["Christianity (General)","BR","BR"]
["History","D-DT","D-DT"]
["U.S. History","E","E"]
["Local History","F","F"]
["Geography","G","G"]
["Business, Law, Education, Music","H-M","H-M"]
["Art","N","N"]
["Greek Literature","PA","PA"]
["Slavic and Russian Philosophy and Literature","PG","PG"]
["Near East Language and Literature","PJ","PJ"]
["Arabic Language and Literature","PK","PK"]
["Asian Language and Literature","PL","PL"]
["French Literature","PQ1-PQ3999","PQ000001-PQ003999"]
["Italian Literature","PQ4001-PQ5999","PQ004001-PQ005999"]
["Spanish Literature","PQ6001-PQ8999","PQ006001-PQ008999"]
["English Literature","PR","PR"]
["American Literature","PS","PS"]
["German Literature","PT1-PT9999","PT000001-PT009999"]
["Pure Sciences","Q-QZ","Q-QZ"]
["Technology","T-TZ","T-TZ"]
[]
["SAMPLER","SAMPLER"]
["Samplers--General","Samp","SAMP"]
["Samplers--New Hardback Best Sellers Fiction","Samp-BestF","SAMP-BESTF"]
["Samplers--New Hardback Science Fiction/Fantasy","Samp-BestS","SAMP-BESTS"]
["Samplers--Biography","Samp-Biog","SAMP-BIOG"]
["Samplers--Fantasy","Samp-Fan","SAMP-FAN"]
["Samplers--Fiction","Samp-Fic","SAMP-FIC"]
["Sampler--Graphic Novels","Samp-Graphic","SAMP-GRAPH"]
["Samplers--Humor","Samp-Humor","SAMP-HUMOR"]
["Sampler--Mormon Fiction","Samp-Mormn","SAMP-MORMN"]
["Samplers--Motivation","Samp-Motiv","SAMP-MOTIV"]
["Samplers--Mystery","Samp-Myst","SAMP-MYST"]
["Samplers--Non-Fiction","Samp-Nfic","SAMP-NFIC"]
["Samplers--Romance","Samp-Rom","SAMP-ROM"]
["Samplers--Science Fiction","Samp-Scifi","SAMP-SCIFI"]
["Samplers--Western","Samp-West","SAMP-WEST"]
[]
["LRC","LRC","DVD"]
["LRC","LRC","DVD-3DAY"]
["LRC","LRC","RESERVELIB"]
["LRC","LRC","EQUIPMENT"]
["LRC","LRC","KEYS"]
["LRC","LRC","NON-CIRC"]
["LRC","LRC","SUPPLEMENT"]
["LRC","LRC","CASSETTE-3"]
["LRC","LRC","CD"]
["LRC","LRC","CD-3DAY"]
["LRC","LRC","CD-ROM3DAY"]
["LRC","LRC","WALKMAN"]
["LRC","LRC","LASER-DISC"]
["LRC","LRC","RECORD"]
["LRC","LRC","VIDEO-3DAY"]
["LRC","LRC","VIDEO-4HR"]
[]
["SUDOC","SUDOC"]
["Agriculture Department","A","A"]
["National Archives and Records Administration","AE","AE"]
["Commerce Department","C","C"]
["Federal Communications Commission","CC","CC"]
["Civil Rights Commission","CR","CR"]
["Defense Department","D","D"]
["Energy Department","E","E"]
["Education Department","ED","ED"]
["Environmental Protection Agency","EP","EP"]
["Federal Credit Administration","FCA","FCA"]
["Federal Emergency Management Agency","FEM","FEM"]
["Federal Trade Commission","FT","FT"]
["Forengn-Trade Zones Board","FTZ","FTZ"]
["General Accounting Office","GA  ","GA  "]
["Government Printing Office","GP","GP"]
["General Services Administration","GS","GS"]
["Health and Human Services Department","HE","HE"]
["Housing and Urban Development Department","HH","HH"]
["Interior Department","I","I"]
["U. S. Information Agency","IA   ","IA   "]
["Interstate Commerce Commission","IC","IC"]
["International Trade Commission","ITC","ITC"]
["Justice Department","J","J"]
["Judiciary","JU","JU"]
["Labor Department","L","L"]
["Library of Congress","LC","LC"]
["National Labor Relations Board","LR","LR"]
["Merit Systems Protection Board","MS","MS"]
["National Aeronautics and Space Administration","NAS","NAS"]
["National Credit Union Administration","NCU  ","NCU  "]
["National Foundation of the Arts and the Humanities","NF","NF"]
["National Science Foundation","NS","NS"]
["United States Postal Service","P","P"]
["Peace Corps","PE   ","PE   "]
["Personnel Management Office","PM","PM"]
["President of the United States","PR","PR"]
["Executive Office of the President","PREX","PREX"]
["State Department","S","S"]
["Small Business Administration","SBA","SBA"]
["Securities and Exchange Commission","SE","SE"]
["Smithsonian Institution","SI","SI"]
["Social Security Administration","SSA","SSA"]
["Treasury Department","T","T"]
["Transportation Department","TD","TD"]
["Veteran Affairs Department","VA","VA"]
["Congress","X","X"]
["Congressional Documents","Y1","Y000001"]
["Miscellaneous Agencies","Y3","Y000003"]
["Congressional Committees","Y4-Y9","Y000004-Y000009"]
["Congressional Budget Office","Y10","Y000010"]
[]
[" "," "]
["CANADIAN DOCUMENTS","CANDOC","CANDOC"]
[]
["DEWEY COLLECTION STILL BEING CHECKED OUT","DEWEY","000000-000999"]

{"sheet":"Instructions","index":3,"n_rows":144,"n_cols":3,"rows_kept":144,"cut":false,"hidden":false,"merged":[[64,2,64,4],[65,2,68,8],[141,2,142,8],[133,2,139,8],[143,2,143,8],[126,2,128,8],[131,2,132,8],[130,2,130,4],[72,2,73,8],[114,2,117,8],[118,2,119,8],[120,2,123,8],[97,2,100,8],[101,2,103,8],[104,2,107,8],[110,2,113,8],[25,2,30,8],[43,2,44,8],[5,2,6,8],[7,2,7,8],[8,2,10,8],[23,2,24,8],[2,2,2,8],[1,1,1,9],[3,2,3,8],[4,2,4,4],[4,5,4,9],[125,2,125,4],[47,2,47,4],[47,11,47,13],[109,2,109,4],[75,2,75,4],[51,11,51,13],[56,2,59,8],[60,2,60,8],[61,2,62,8],[48,2,49,8],[51,2,55,8],[76,2,77,8],[91,2,93,8],[94,2,96,8],[70,2,70,4],[71,2,71,8]]}
[]
[]
[null,null,"Instructions"]
[]
[null,null,"Uploading Reports"]
[null,null,"1. From the Circulation Reports tab select the type of report you want to upload"]
[]
[null,null,"2. Browse to the folder containing the unformated txt reports"]
[null,null,"3. The upload reports window will allow you to browse the reports that were in your folder. If you chose to upload in house reports, only those reports will be shown, the same applies for circulation reports. "]
[]
[]
[]
[]
[]
[]
[]
[]
[]
[]
[]
[]
[]
[]
[null,null,"4. When you are satified with the reports that will be uploaded select \"Upload Reports\""]
[]
[null,null,"5. Select the month for which you reports represent. Caution, after selecting ok, the process will start. Make sure you have selected the correct month as to not overwrite any data from previous months. Also, if for some reason there is already data in the month you want to select. Make sure to clear it out first, this process does not delete any existing data but simply will just add to it giving you incorrect numbers. "]
[]
[]
[]
[]
[]
[]
[]
[]
[]
[]
[]
[]
[]
[]
[]
[]
[]
[null,null,"6. After selecting the month, sit back and watch! Hours of you time have been saved!"]
[]
[]
[]
[null,null,"Adding Mappings"]
[null,null,"Because most of the call numbers are slightly different in the txt reports than what is used in the master report there was need for mappings. "]
[]
[]
[null,null,"1. On the mappings sheet find the section in which you want to add a mapping. Right click a row and select \"Insert\". Even if you just want to add a mapping at the end of a section it is important that you \"insert\" a row because of the use of \"named ranges\" (See \"Adding a Section\" for an explaination of named ranges.)"]
[]
[]
[]
[]
[null,null,"2. On the insterted row, fill in values for description, call number, full call number. Call number refers to the display name on the reshelving report, Full call number referst to the call number found in the txt reports (remove any spaces in the call number on the report). "]
[]
[]
[]
[null,null,"3. Insert a row in to the coresponding section on the reshelving report sheet"]
[null,null,"4. Fill in information for the new mapping making sure to match the call number from the mappings sheet"]
[]
[]
[null,null,"Adding Many to One Mappings"]
[null,null,"In some cases you may want to aggregate more than one call number range into one mapping (ex: LRC). In this case you will need to create multiple mappings rows on the mappings sheet, all pointing to the same mapping (ex: LRC)"]
[]
[]
[]
[]
[null,null,"Deleting Mappings"]
[null,null,"1. Deleting a mapping is as easy as deleting the row on the reshelving report."]
[null,null,"2. It is not required to actually delete the mapping from the mappings sheet but is suggested."]
[]
[]
[null,null,"Adding Reports"]
[null,null,"If you decide to add more reports it is important that they are set up correctly so the code behind this spread sheet can properly handle them."]
[]
[]
[null,null,"1. Each report must have a title and subtitle for the first two lines "]
[]
[]
[]
[]
[]
[]
[]
[]
[]
[]
[]
[null,null,"In the above example, the first line is considerd the title and the second the subtitle. The title is used as the name of the report in the reports form durring an upload of reports. "]
[]
[]
[null,null,"2. For In-House reports it is critical that the report have the letters ih at the end of the subtitle. These letters are used by the code behind to filter In-House reports from circulation reports."]
[]
[]
[null,null,"3. Add the report title to the report sections sheet. I wrote the code to remove the date from the end of the title so you will need to do so as well. This was done so you don’t have to redo the report sections sheet every month."]
[]
[]
[]
[null,null,"4. If there is not already a corresponding section for the new report, you will need to add a section to both the reshelving report sheet and the mappings sheet (see \"Adding a Section\")"]
[]
[]
[null,null,"5. Finally, you will need to add mappings for all the call numbers from the new report (see \"Adding a Mapping\"). This may be a bit tedious, but you will only have to do this once and the reports will be handled for you in future months."]
[]
[]
[]
[]
[null,null,"Adding a Section"]
[null,null,"1. If you have new reports that you want to have in their own section the first step is to add the reports to the report sections sheet (see \"Adding a Report\") and then setting the section for the new report to the name of the new section you will add."]
[]
[]
[]
[null,null,"2. If your new section were for example \"LAW LIBRARY\" you will now need to add the section to the reshelving report sheet and the mappings sheet. Once the sections have been added, you will need to include any of the mappings in the two sheets in a named range."]
[]
[]
[]
[null,null,"3. To create a named range, simply select the cells your mappings are in and type the new name for the section in the \"Name Box\"."]
[]
[null,null,"4. If the name of my new section were law library, the named range for the mappings page should be \"M_LAW_LIBRARY\". For the reshelving report sheet, the range would be named \"R_LAW_LIBRARY\" See the two screen shots to the right for examples."]
[]
[]
[]
[]
[null,null,"Starting a New Year"]
[null,null,"1. Simply change the years at the top of the reshelving report and delete the old data from the rows for each of the months (do not delete the column headings for the months."]
[]
[]
[]
[null,null,"Trouble Shooting"]
[null,null,"1. I get a message at the end of the upload telling me that I am missing mappings, I have the mappings. What should I do?"]
[]
[null,null,"Double check for typos. If it doesn appear that there are any typos check for blank spaces at the end of a call number in either the mappings sheet or the report sections sheet. To do this select the cell and hit F2. If there are any blank spaces you will quickly be able to see them. Removing them will probably resolve your issues. If this still doesn't resolve your issues, double check that the corresponding named regions for all the mappings have not been messed up."]
[]
[]
[]
[]
[]
[]
[]
[null,null,"2. One of my named regions is messed up. The name is wrong or more cells need to be included. How do I fix this?"]
[]
[null,null,"You can view all named regions and edit them by holding down ctrl + F3"]